Workbook

Sheet Home
B5: Welcome to Project Portfolio Dashboard. Follow these instructions to use the dashboard.
B7: 1 | C7: Enter high level project details in Project Details tab | I7: =Calculations!C4&" projects specified" -> 8 projects specified
B8: 2 | C8: Enter Individual project plan details in Project Plans page | I8: =COUNTA('Project Plans'!2:2)&" plans specified" -> 10 plans specified
B9: 3 | C9: Enter Risks & Issues | I9: =COUNTA(tblRisks[ID])&" risks and "&COUNTA(tblIssues[ID])&" issues defined" -> 25 risks and 25 issues defined
B10: 4 | C10: Specify holidays and dashboard settings | I10: =COUNTA(tblHolidays[Date])&" holidays added" -> 6 holidays added
B11: 5 | C11: Define names for any new projects you have added
B12: 6 | C12: Check out the dashboard
B14: Quick Links:

Sheet Dashboard
C6: =Calculations!C9 -> Riggs-A-lot decomissioning
C7: =Calculations!G9 -> 0.5 | D7: =C7 -> 0.5 | E7: =Calculations!I9 -> $ 377k | F7: =Calculations!H9 -> 3 months
C11: =Calculations!C10 -> Six Sigma Assessment
C12: =Calculations!G10 -> 0.86 | D12: =C12 -> 0.86 | E12: =Calculations!I10 -> $ 445k | F12: =Calculations!H10 -> 4 months
C16: =Calculations!C11 -> HRM Rollout
C17: =Calculations!G11 -> 0.81 | D17: =C17 -> 0.81 | E17: =Calculations!I11 -> $ 322k | F17: =Calculations!H11 -> 8 months
C21: =Calculations!C12 -> CBM Development
C22: =Calculations!G12 -> 1 | D22: =C22 -> 1 | E22: =Calculations!I12 -> $ 302k | F22: =Calculations!H12 -> 10 months
I24: Critical Issues | L24: Risks | O24: Tasks | Q24: People | S24: Comments
C26: =Calculations!C13 -> 12th Annual Customer Convention
C27: =Calculations!G13 -> 0.79 | D27: =C27 -> 0.79 | E27: =Calculations!I13 -> $ 490k | F27: =Calculations!H13 -> 11 months
U32: =HYPERLINK("mailto:"&Settings!$I$6,"@") -> @

Sheet Project Details
B3: Project Names & Contact details | E3: Team Details
B5: ID | C5: Project Name | D5: Project Owner | E5: Email | F5: Phone | G5: Budget ($) | H5: Spent ($) | I5: Deadline | J5: % Done | K5: Team Size | L5: Comments
B6: 1 | C6: ABC Integration | D6: Adam Albert | E6: alberta@project.com | F6: 758-072-8357 | G6: 484000 | H6: 392910 | I6: 2014-04-12 | J6: 0.84 | K6: 20 | L6: We need to focus on this project. It is going to be superb failure.
B7: 2 | C7: Morlott Highway | D7: Benny Brown | E7: brownb@project.com | F7: 663-179-7666 | G7: 382000 | H7: 304893 | I7: 2014-07-13 | J7: 0.91 | K7: 15 | L7: We need to be clam on this project. It is going to be massive story.
B8: 3 | C8: Riggs-A-lot decomissioning | D8: Cathernie Crown | E8: crownc@project.com | F8: 396-233-5326 | G8: 377000 | H8: 222122 | I8: 2013-03-14 | J8: 0.5 | K8: 35 | L8: We need to be clam on this project. It is going to be superb success.
B9: 4 | C9: 12th Annual Customer Convention | D9: Daniel Darwin | E9: darwind@project.com | F9: 667-789-3470 | G9: 490000 | H9: 445395 | I9: 2013-10-20 | J9: 0.79 | K9: 35 | L9: We need to be wise on this project. It is going to be different failure.
B10: 5 | C10: Six Sigma Assessment | D10: Egan Ebert | E10: eberte@project.com | F10: 334-903-8877 | G10: 445000 | H10: 323965 | I10: 2013-03-24 | J10: 0.86 | K10: 35 | L10: We need to be wise on this project. It is going to be superb story.
B11: 6 | C11: CBM Development | D11: Frank Fraiser | E11: fraiserf@project.com | F11: 261-543-6686 | G11: 302000 | H11: 188391 | I11: 2013-10-13 | J11: 1 | K11: 30 | L11: We need to stay alert on this project. It is going to be superb failure.
B12: 7 | C12: ASSOC Maintenance | D12: Giri Gopalakrishnan | E12: gopalakrishnang@project.com | F12: 873-031-7089 | G12: 405000 | H12: 360511 | I12: 2014-03-28 | J12: 0.91 | K12: 35 | L12: We need to stay alert on this project. It is going to be superb failure.
B13: 8 | C13: HRM Rollout | D13: Hart Hankenson | E13: hankensonh@project.com | F13: 426-687-7283 | G13: 322000 | H13: 171426 | I13: 2013-08-12 | J13: 0.81 | K13: 20 | L13: We need to be clam on this project. It is going to be different success.
B34: Team Details
B36: ID | C36: Name | D36: Email Address | E36: Phone
B37: 1 | C37: Person Name1 | D37: person.name1@project.com | E37: 289-750-2196
B38: 2 | C38: Person Name2 | D38: person.name2@project.com | E38: 233-059-6909
B39: 3 | C39: Person Name3 | D39: person.name3@project.com | E39: 485-595-2759
B40: 4 | C40: Person Name4 | D40: person.name4@project.com | E40: 245-489-3050
B41: 5 | C41: Person Name5 | D41: person.name5@project.com | E41: 768-996-3793
B42: 6 | C42: Person Name6 | D42: person.name6@project.com | E42: 392-527-5968
B43: 7 | C43: Person Name7 | D43: person.name7@project.com | E43: 658-911-9822
B44: 8 | C44: Person Name8 | D44: person.name8@project.com | E44: 512-650-6887
B45: 9 | C45: Person Name9 | D45: person.name9@project.com | E45: 972-072-1316
B46: 10 | C46: Person Name10 | D46: person.name10@project.com | E46: 460-032-1593
B47: 11 | C47: Person Name11 | D47: person.name11@project.com | E47: 393-446-0326
B48: 12 | C48: Person Name12 | D48: person.name12@project.com | E48: 852-827-6157
B49: 13 | C49: Person Name13 | D49: person.name13@project.com | E49: 354-270-8237
B50: 14 | C50: Person Name14 | D50: person.name14@project.com | E50: 865-365-6838
B51: 15 | C51: Person Name15 | D51: person.name15@project.com | E51: 267-925-7168
B52: 16 | C52: Person Name16 | D52: person.name16@project.com | E52: 661-614-4173

Sheet Project Plans
B2: Project 1 | J2: Project 2 | R2: Project 3 | Z2: Project 4 | AH2: Project 5 | AP2: Project 6 | AX2: Project 7 | BF2: Project 8 | BN2: Project 9 | BV2: Project 10
B3: =INDEX(lstProjects,1) -> ABC Integration | J3: =INDEX(lstProjects,2) -> Morlott Highway | R3: =INDEX(lstProjects,3) -> Riggs-A-lot decomissioning | Z3: =INDEX(lstProjects,4) -> 12th Annual Customer Convention | AH3: =INDEX(lstProjects,5) -> Six Sigma Assessment | AP3: =INDEX(lstProjects,6) -> CBM Development | AX3: =INDEX(lstProjects,7) -> ASSOC Maintenance | BF3: =INDEX(lstProjects,8) -> HRM Rollout | BN3: =INDEX(lstProjects,9) ->  | BV3: =INDEX(lstProjects,10) -> 
B5: Activity | C5: Start Date | D5: Duration | E5: % done | F5: Budget ($) | G5: Actual ($) | J5: Activity | K5: Start Date | L5: Duration | M5: % done | N5: Budget ($) | O5: Actual ($) | R5: Activity | S5: Start Date | T5: Duration | U5: % done | V5: Budget ($) | W5: Actual ($) | Z5: Activity | AA5: Start Date | AB5: Duration | AC5: % done | AD5: Budget ($) | AE5: Actual ($) | AH5: Activity | AI5: Start Date | AJ5: Duration | AK5: % done | AL5: Budget ($) | AM5: Actual ($) | AP5: Activity | AQ5: Start Date | AR5: Duration | AS5: % done | AT5: Budget ($) | AU5: Actual ($) | AX5: Activity | AY5: Start Date | AZ5: Duration | BA5: % done | BB5: Budget ($) | BC5: Actual ($) | BF5: Activity | BG5: Start Date | BH5: Duration | BI5: % done | BJ5: Budget ($) | BK5: Actual ($) | BN5: Activity | BO5: Start Date | BP5: Duration | BQ5: % done | BR5: Budget ($) | BS5: Actual ($) | BV5: Activity | BW5: Start Date | BX5: Duration | BY5: % done | BZ5: Budget ($) | CA5: Actual ($)
B6: Activity 1 | C6: 2011-08-27 | D6: 14 | E6: 0.77 | F6: 5000 | G6: 3176 | J6: Activity 1 | K6: 2011-09-26 | L6: 14 | M6: 0.89 | N6: 4000 | O6: 3234 | R6: Activity 1 | S6: 2011-08-27 | T6: 14 | U6: 0.89 | V6: 5000 | W6: 4298 | Z6: Activity 1 | AA6: 2011-08-27 | AB6: 21 | AC6: 0.83 | AD6: 5000 | AE6: 2210 | AH6: Activity 1 | AI6: 2011-08-27 | AJ6: 14 | AK6: 0.83 | AL6: 3000 | AM6: 2338 | AP6: Activity 1 | AQ6: 2011-08-27 | AR6: 21 | AS6: 0.8 | AT6: 3000 | AU6: 159 | AX6: Activity 1 | AY6: 2011-08-27 | AZ6: 14 | BA6: 0.77 | BB6: 2000 | BC6: 1243 | BF6: Activity 1 | BG6: 2011-08-27 | BH6: 21 | BI6: 0.83 | BJ6: 1000 | BK6: 291 | BN6: Activity 1 | BO6: 2011-09-26 | BP6: 14 | BQ6: 0.89 | BR6: 1000 | BS6: 343 | BV6: Activity 1 | BW6: 2011-08-27 | BX6: 21 | BY6: 0.76 | BZ6: 5000 | CA6: 1965
B7: Activity 2 | C7: 2011-09-15 | D7: 21 | E7: 0.17 | F7: 1000 | G7: 119 | J7: Activity 2 | K7: 2011-10-13 | L7: 7 | M7: 0.14 | N7: 4000 | O7: 227 | R7: Activity 2 | S7: 2011-09-12 | T7: 7 | U7: 0 | V7: 1000 | W7: 0 | Z7: Activity 2 | AA7: 2011-09-09 | AB7: 21 | AC7: 0 | AD7: 1000 | AE7: 0 | AH7: Activity 2 | AI7: 2011-09-07 | AJ7: 14 | AK7: 0.19 | AL7: 1000 | AM7: 139 | AP7: Activity 2 | AQ7: 2011-09-07 | AR7: 7 | AS7: 0.38 | AT7: 2000 | AU7: 46 | AX7: Activity 2 | AY7: 2011-09-14 | AZ7: 21 | BA7: 0.3 | BB7: 4000 | BC7: 521 | BF7: Activity 2 | BG7: 2011-09-14 | BH7: 7 | BI7: 0 | BJ7: 1000 | BK7: 0 | BN7: Activity 2 | BO7: 2011-10-12 | BP7: 14 | BQ7: 0.47 | BR7: 3000 | BS7: 458 | BV7: Activity 2 | BW7: 2011-09-06 | BX7: 7 | BY7: 0.26 | BZ7: 5000 | CA7: 96
B8: Activity 3 | C8: 2011-10-04 | D8: 14 | E8: 0.51 | F8: 4000 | G8: 262 | J8: Activity 3 | K8: 2011-10-31 | L8: 14 | M8: 0.3 | N8: 4000 | O8: 914 | R8: Activity 3 | S8: 2011-09-26 | T8: 7 | U8: 0 | V8: 5000 | W8: 0 | Z8: Activity 3 | AA8: 2011-09-20 | AB8: 14 | AC8: 0 | AD8: 2000 | AE8: 0 | AH8: Activity 3 | AI8: 2011-09-26 | AJ8: 7 | AK8: 0 | AL8: 2000 | AM8: 0 | AP8: Activity 3 | AQ8: 2011-09-26 | AR8: 7 | AS8: 0.56 | AT8: 1000 | AU8: 293 | AX8: Activity 3 | AY8: 2011-09-27 | AZ8: 14 | BA8: 0 | BB8: 1000 | BC8: 0 | BF8: Activity 3 | BG8: 2011-09-23 | BH8: 14 | BI8: 0 | BJ8: 5000 | BK8: 0 | BN8: Activity 3 | BO8: 2011-11-01 | BP8: 7 | BQ8: 0.14 | BR8: 3000 | BS8: 43 | BV8: Activity 3 | BW8: 2011-09-21 | BX8: 14 | BY8: 0.37 | BZ8: 1000 | CA8: 227
B9: Activity 4 | C9: 2011-10-17 | D9: 14 | E9: 0 | F9: 3000 | G9: 0 | J9: Activity 4 | K9: 2011-11-16 | L9: 7 | M9: 0.51 | N9: 1000 | O9: 0 | R9: Activity 4 | S9: 2011-10-10 | T9: 21 | U9: 0.01 | V9: 1000 | W9: 5 | Z9: Activity 4 | AA9: 2011-10-06 | AB9: 7 | AC9: 0.56 | AD9: 4000 | AE9: 266 | AH9: Activity 4 | AI9: 2011-10-10 | AJ9: 7 | AK9: 0.66 | AL9: 5000 | AM9: 3591 | AP9: Activity 4 | AQ9: 2011-10-12 | AR9: 7 | AS9: 0.63 | AT9: 2000 | AU9: 272 | AX9: Activity 4 | AY9: 2011-10-07 | AZ9: 14 | BA9: 0 | BB9: 3000 | BC9: 0 | BF9: Activity 4 | BG9: 2011-10-06 | BH9: 7 | BI9: 0 | BJ9: 4000 | BK9: 0 | BN9: Activity 4 | BO9: 2011-11-11 | BP9: 21 | BQ9: 0.55 | BR9: 3000 | BS9: 1763 | BV9: Activity 4 | BW9: 2011-10-03 | BX9: 7 | BY9: 0.13 | BZ9: 1000 | CA9: 11
B10: Activity 5 | C10: 2011-10-27 | D10: 14 | E10: 0.68 | F10: 3000 | G10: 1798 | J10: Activity 5 | K10: 2011-11-30 | L10: 14 | M10: 0 | N10: 3000 | O10: 0 | R10: Activity 5 | S10: 2011-10-19 | T10: 21 | U10: 0.46 | V10: 2000 | W10: 1003 | Z10: Activity 5 | AA10: 2011-10-26 | AB10: 7 | AC10: 0.12 | AD10: 5000 | AE10: 399 | AH10: Activity 5 | AI10: 2011-10-25 | AJ10: 21 | AK10: 0.69 | AL10: 2000 | AM10: 1223 | AP10: Activity 5 | AQ10: 2011-10-21 | AR10: 7 | AS10: 0 | AT10: 5000 | AU10: 0 | AX10: Activity 5 | AY10: 2011-10-27 | AZ10: 21 | BA10: 0 | BB10: 5000 | BC10: 0 | BF10: Activity 5 | BG10: 2011-10-18 | BH10: 7 | BI10: 0.41 | BJ10: 2000 | BK10: 218 | BN10: Activity 5 | BO10: 2011-11-25 | BP10: 14 | BQ10: 0.69 | BR10: 3000 | BS10: 1549 | BV10: Activity 5 | BW10: 2011-10-19 | BX10: 7 | BY10: 0 | BZ10: 1000 | CA10: 0
B11: Activity 6 | C11: 2011-11-08 | D11: 14 | E11: 0 | F11: 2000 | G11: 0 | J11: Activity 6 | K11: 2011-12-13 | L11: 7 | M11: 0 | N11: 5000 | O11: 0 | R11: Activity 6 | S11: 2011-11-03 | T11: 21 | U11: 0.28 | V11: 4000 | W11: 705 | Z11: Activity 6 | AA11: 2011-11-07 | AB11: 21 | AC11: 0 | AD11: 3000 | AE11: 0 | AH11: Activity 6 | AI11: 2011-11-07 | AJ11: 7 | AK11: 0 | AL11: 2000 | AM11: 0 | AP11: Activity 6 | AQ11: 2011-11-08 | AR11: 21 | AS11: 0 | AT11: 1000 | AU11: 0 | AX11: Activity 6 | AY11: 2011-11-10 | AZ11: 7 | BA11: 0.45 | BB11: 1000 | BC11: 145 | BF11: Activity 6 | BG11: 2011-10-28 | BH11: 14 | BI11: 0.53 | BJ11: 5000 | BK11: 259 | BN11: Activity 6 | BO11: 2011-12-08 | BP11: 7 | BQ11: 0 | BR11: 3000 | BS11: 0 | BV11: Activity 6 | BW11: 2011-10-31 | BX11: 7 | BY11: 0.39 | BZ11: 3000 | CA11: 96
B12: Activity 7 | C12: 2011-11-23 | D12: 14 | E12: 0 | F12: 3000 | G12: 0 | J12: Activity 7 | K12: 2011-12-27 | L12: 7 | M12: 0 | N12: 1000 | O12: 0 | R12: Activity 7 | S12: 2011-11-16 | T12: 21 | U12: 0 | V12: 2000 | W12: 0 | Z12: Activity 7 | AA12: 2011-11-24 | AB12: 21 | AC12: 0 | AD12: 3000 | AE12: 0 | AH12: Activity 7 | AI12: 2011-11-22 | AJ12: 14 | AK12: 0 | AL12: 4000 | AM12: 0 | AP12: Activity 7 | AQ12: 2011-11-28 | AR12: 21 | AS12: 0 | AT12: 4000 | AU12: 0 | AX12: Activity 7 | AY12: 2011-11-28 | AZ12: 21 | BA12: 0.32 | BB12: 1000 | BC12: 208 | BF12: Activity 7 | BG12: 2011-11-14 | BH12: 14 | BI12: 0.67 | BJ12: 2000 | BK12: 1390 | BN12: Activity 7 | BO12: 2011-12-23 | BP12: 7 | BQ12: 0 | BR12: 1000 | BS12: 0 | BV12: Activity 7 | BW12: 2011-11-18 | BX12: 21 | BY12: 0.09 | BZ12: 2000 | CA12: 157
B13: Activity 8 | C13: 2011-12-06 | D13: 7 | E13: 0.03 | F13: 2000 | G13: 54 | J13: Activity 8 | K13: 2012-01-06 | L13: 7 | M13: 0.12 | N13: 5000 | O13: 581 | R13: Activity 8 | S13: 2011-11-25 | T13: 21 | U13: 0.13 | V13: 3000 | W13: 7 | Z13: Activity 8 | AA13: 2011-12-13 | AB13: 7 | AC13: 0 | AD13: 4000 | AE13: 0 | AH13: Activity 8 | AI13: 2011-12-05 | AJ13: 21 | AK13: 0.33 | AL13: 4000 | AM13: 1125 | AP13: Activity 8 | AQ13: 2011-12-08 | AR13: 14 | AS13: 0.13 | AT13: 4000 | AU13: 366 | AX13: Activity 8 | AY13: 2011-12-14 | AZ13: 14 | BA13: 0.24 | BB13: 5000 | BC13: 895 | BF13: Activity 8 | BG13: 2011-12-02 | BH13: 14 | BI13: 0 | BJ13: 2000 | BK13: 0 | BN13: Activity 8 | BO13: 2012-01-04 | BP13: 7 | BQ13: 0 | BR13: 1000 | BS13: 0 | BV13: Activity 8 | BW13: 2011-12-06 | BX13: 14 | BY13: 0 | BZ13: 3000 | CA13: 0
B14: Activity 9 | C14: 2011-12-20 | D14: 21 | E14: 0.41 | F14: 4000 | G14: 864 | J14: Activity 9 | K14: 2012-01-25 | L14: 14 | M14: 0.33 | N14: 5000 | O14: 1500 | R14: Activity 9 | S14: 2011-12-06 | T14: 21 | U14: 0.38 | V14: 5000 | W14: 682 | Z14: Activity 9 | AA14: 2011-12-27 | AB14: 21 | AC14: 0.27 | AD14: 5000 | AE14: 1344 | AH14: Activity 9 | AI14: 2011-12-15 | AJ14: 21 | AK14: 0 | AL14: 3000 | AM14: 0 | AP14: Activity 9 | AQ14: 2011-12-22 | AR14: 14 | AS14: 0.65 | AT14: 5000 | AU14: 2374 | AX14: Activity 9 | AY14: 2011-12-30 | AZ14: 7 | BA14: 0 | BB14: 3000 | BC14: 0 | BF14: Activity 9 | BG14: 2011-12-14 | BH14: 7 | BI14: 0.14 | BJ14: 4000 | BK14: 514 | BN14: Activity 9 | BO14: 2012-01-20 | BP14: 21 | BQ14: 0 | BR14: 1000 | BS14: 0 | BV14: Activity 9 | BW14: 2011-12-21 | BX14: 7 | BY14: 0.29 | BZ14: 3000 | CA14: 452
B15: Activity 10 | C15: 2012-01-03 | D15: 7 | E15: 0.4 | F15: 3000 | G15: 51 | J15: Activity 10 | K15: 2012-02-03 | L15: 7 | M15: 0.38 | N15: 1000 | O15: 274 | R15: Activity 10 | S15: 2011-12-22 | T15: 14 | U15: 0 | V15: 5000 | W15: 0 | Z15: Activity 10 | AA15: 2012-01-06 | AB15: 14 | AC15: 0.2 | AD15: 3000 | AE15: 222 | AH15: Activity 10 | AI15: 2012-01-03 | AJ15: 21 | AK15: 0 | AL15: 5000 | AM15: 0 | AP15: Activity 10 | AQ15: 2012-01-02 | AR15: 7 | AS15: 0 | AT15: 5000 | AU15: 0 | AX15: Activity 10 | AY15: 2012-01-18 | AZ15: 7 | BA15: 0.68 | BB15: 4000 | BC15: 993 | BF15: Activity 10 | BG15: 2011-12-27 | BH15: 14 | BI15: 0.36 | BJ15: 5000 | BK15: 1043 | BN15: Activity 10 | BO15: 2012-02-06 | BP15: 14 | BQ15: 0.6 | BR15: 4000 | BS15: 85 | BV15: Activity 10 | BW15: 2012-01-10 | BX15: 7 | BY15: 0 | BZ15: 2000 | CA15: 0
B16: Activity 11 | C16: 2012-01-12 | D16: 14 | E16: 0.59 | F16: 5000 | G16: 1588 | J16: Activity 11 | K16: 2012-02-14 | L16: 14 | M16: 0.27 | N16: 4000 | O16: 874 | R16: Activity 11 | S16: 2012-01-10 | T16: 7 | U16: 0 | V16: 1000 | W16: 0 | Z16: Activity 11 | AA16: 2012-01-25 | AB16: 21 | AC16: 0 | AD16: 1000 | AE16: 0 | AH16: Activity 11 | AI16: 2012-01-12 | AJ16: 21 | AK16: 0.17 | AL16: 1000 | AM16: 22 | AP16: Activity 11 | AQ16: 2012-01-13 | AR16: 14 | AS16: 0 | AT16: 2000 | AU16: 0 | AX16: Activity 11 | AY16: 2012-02-03 | AZ16: 14 | BA16: 0 | BB16: 2000 | BC16: 0 | BF16: Activity 11 | BG16: 2012-01-09 | BH16: 14 | BI16: 0 | BJ16: 2000 | BK16: 0 | BN16: Activity 11 | BO16: 2012-02-22 | BP16: 7 | BQ16: 0.41 | BR16: 2000 | BS16: 668 | BV16: Activity 11 | BW16: 2012-01-24 | BX16: 7 | BY16: 0.29 | BZ16: 5000 | CA16: 380
B17: Activity 12 | C17: 2012-01-30 | D17: 7 | E17: 0 | F17: 1000 | G17: 0 | J17: Activity 12 | K17: 2012-03-01 | L17: 14 | M17: 0 | N17: 4000 | O17: 0 | R17: Activity 12 | S17: 2012-01-19 | T17: 21 | U17: 0 | V17: 4000 | W17: 0 | Z17: Activity 12 | AA17: 2012-02-13 | AB17: 21 | AC17: 0.59 | AD17: 1000 | AE17: 184 | AH17: Activity 12 | AI17: 2012-01-24 | AJ17: 7 | AK17: 0.09 | AL17: 1000 | AM17: 46 | AP17: Activity 12 | AQ17: 2012-01-26 | AR17: 21 | AS17: 0.12 | AT17: 2000 | AU17: 67 | AX17: Activity 12 | AY17: 2012-02-20 | AZ17: 7 | BA17: 0.55 | BB17: 1000 | BC17: 605 | BF17: Activity 12 | BG17: 2012-01-20 | BH17: 14 | BI17: 0.34 | BJ17: 3000 | BK17: 61 | BN17: Activity 12 | BO17: 2012-03-06 | BP17: 14 | BQ17: 0 | BR17: 4000 | BS17: 0 | BV17: Activity 12 | BW17: 2012-02-10 | BX17: 7 | BY17: 0.24 | BZ17: 2000 | CA17: 307
B18: Activity 13 | C18: 2012-02-13 | D18: 21 | E18: 0.47 | F18: 2000 | G18: 363 | J18: Activity 13 | K18: 2012-03-16 | L18: 14 | M18: 0 | N18: 5000 | O18: 0 | R18: Activity 13 | S18: 2012-02-03 | T18: 7 | U18: 0.19 | V18: 3000 | W18: 489 | Z18: Activity 13 | AA18: 2012-02-23 | AB18: 21 | AC18: 0.41 | AD18: 1000 | AE18: 405 | AH18: Activity 13 | AI18: 2012-02-07 | AJ18: 7 | AK18: 0 | AL18: 5000 | AM18: 0 | AP18: Activity 13 | AQ18: 2012-02-06 | AR18: 7 | AS18: 0.44 | AT18: 5000 | AU18: 856 | AX18: Activity 13 | AY18: 2012-02-29 | AZ18: 14 | BA18: 0.67 | BB18: 2000 | BC18: 747 | BF18: Activity 13 | BG18: 2012-02-08 | BH18: 7 | BI18: 0 | BJ18: 3000 | BK18: 0 | BN18: Activity 13 | BO18: 2012-03-16 | BP18: 14 | BQ18: 0.27 | BR18: 4000 | BS18: 697 | BV18: Activity 13 | BW18: 2012-02-24 | BX18: 7 | BY18: 0 | BZ18: 1000 | CA18: 0
B19: Activity 14 | C19: 2012-02-29 | D19: 14 | E19: 0 | F19: 1000 | G19: 0 | J19: Activity 14 | K19: 2012-03-27 | L19: 21 | M19: 0.61 | N19: 3000 | O19: 143 | R19: Activity 14 | S19: 2012-02-16 | T19: 14 | U19: 0 | V19: 3000 | W19: 0 | Z19: Activity 14 | AA19: 2012-03-12 | AB19: 7 | AC19: 0.49 | AD19: 3000 | AE19: 552 | AH19: Activity 14 | AI19: 2012-02-21 | AJ19: 21 | AK19: 0.16 | AL19: 3000 | AM19: 406 | AP19: Activity 14 | AQ19: 2012-02-23 | AR19: 21 | AS19: 0 | AT19: 2000 | AU19: 0 | AX19: Activity 14 | AY19: 2012-03-13 | AZ19: 14 | BA19: 0 | BB19: 5000 | BC19: 0 | BF19: Activity 14 | BG19: 2012-02-27 | BH19: 21 | BI19: 0.36 | BJ19: 5000 | BK19: 898 | BN19: Activity 14 | BO19: 2012-04-03 | BP19: 14 | BQ19: 0 | BR19: 3000 | BS19: 0 | BV19: Activity 14 | BW19: 2012-03-15 | BX19: 7 | BY19: 0 | BZ19: 5000 | CA19: 0
B20: Activity 15 | C20: 2012-03-15 | D20: 7 | E20: 0 | F20: 2000 | G20: 0 | J20: Activity 15 | K20: 2012-04-09 | L20: 7 | M20: 0.31 | N20: 3000 | O20: 129 | R20: Activity 15 | S20: 2012-03-01 | T20: 21 | U20: 0 | V20: 3000 | W20: 0 | Z20: Activity 15 | AA20: 2012-03-21 | AB20: 14 | AC20: 0.41 | AD20: 3000 | AE20: 898 | AH20: Activity 15 | AI20: 2012-03-07 | AJ20: 7 | AK20: 0.28 | AL20: 4000 | AM20: 398 | AP20: Activity 15 | AQ20: 2012-03-13 | AR20: 14 | AS20: 0.09 | AT20: 5000 | AU20: 120 | AX20: Activity 15 | AY20: 2012-03-27 | AZ20: 21 | BA20: 0 | BB20: 2000 | BC20: 0 | BF20: Activity 15 | BG20: 2012-03-09 | BH20: 14 | BI20: 0 | BJ20: 2000 | BK20: 0 | BN20: Activity 15 | BO20: 2012-04-17 | BP20: 14 | BQ20: 0.44 | BR20: 1000 | BS20: 290 | BV20: Activity 15 | BW20: 2012-03-27 | BX20: 21 | BY20: 0.41 | BZ20: 2000 | CA20: 114
B21: Activity 16 | C21: 2012-04-02 | D21: 7 | E21: 0 | F21: 1000 | G21: 0 | J21: Activity 16 | K21: 2012-04-19 | L21: 21 | M21: 0 | N21: 1000 | O21: 0 | R21: Activity 16 | S21: 2012-03-20 | T21: 21 | U21: 0.42 | V21: 3000 | W21: 412 | Z21: Activity 16 | AA21: 2012-04-03 | AB21: 14 | AC21: 0.62 | AD21: 1000 | AE21: 467 | AH21: Activity 16 | AI21: 2012-03-21 | AJ21: 14 | AK21: 0.12 | AL21: 2000 | AM21: 85 | AP21: Activity 16 | AQ21: 2012-03-26 | AR21: 7 | AS21: 0 | AT21: 1000 | AU21: 0 | AX21: Activity 16 | AY21: 2012-04-13 | AZ21: 7 | BA21: 0.7 | BB21: 1000 | BC21: 403 | BF21: Activity 16 | BG21: 2012-03-20 | BH21: 21 | BI21: 0 | BJ21: 5000 | BK21: 0 | BN21: Activity 16 | BO21: 2012-04-30 | BP21: 7 | BQ21: 0.02 | BR21: 3000 | BS21: 17 | BV21: Activity 16 | BW21: 2012-04-09 | BX21: 21 | BY21: 0.66 | BZ21: 5000 | CA21: 1281
B22: Activity 17 | C22: 2012-04-12 | D22: 14 | E22: 0.16 | F22: 2000 | G22: 49 | J22: Activity 17 | K22: 2012-05-03 | L22: 7 | M22: 0.64 | N22: 1000 | O22: 306 | R22: Activity 17 | S22: 2012-04-09 | T22: 7 | U22: 0 | V22: 5000 | W22: 0 | Z22: Activity 17 | AA22: 2012-04-20 | AB22: 21 | AC22: 0.15 | AD22: 4000 | AE22: 188 | AH22: Activity 17 | AI22: 2012-04-10 | AJ22: 14 | AK22: 0.19 | AL22: 1000 | AM22: 30 | AP22: Activity 17 | AQ22: 2012-04-13 | AR22: 21 | AS22: 0.45 | AT22: 4000 | AU22: 1705 | AX22: Activity 17 | AY22: 2012-04-30 | AZ22: 7 | BA22: 0 | BB22: 1000 | BC22: 0 | BF22: Activity 17 | BG22: 2012-03-30 | BH22: 7 | BI22: 0.69 | BJ22: 5000 | BK22: 1067 | BN22: Activity 17 | BO22: 2012-05-18 | BP22: 7 | BQ22: 0.14 | BR22: 4000 | BS22: 527 | BV22: Activity 17 | BW22: 2012-04-24 | BX22: 7 | BY22: 0 | BZ22: 4000 | CA22: 0
B23: Activity 18 | C23: 2012-04-26 | D23: 14 | E23: 0.47 | F23: 4000 | G23: 896 | J23: Activity 18 | K23: 2012-05-16 | L23: 21 | M23: 0.7 | N23: 2000 | O23: 1013 | R23: Activity 18 | S23: 2012-04-23 | T23: 7 | U23: 0.17 | V23: 2000 | W23: 123 | Z23: Activity 18 | AA23: 2012-05-07 | AB23: 21 | AC23: 0 | AD23: 1000 | AE23: 0 | AH23: Activity 18 | AI23: 2012-04-27 | AJ23: 14 | AK23: 0.57 | AL23: 2000 | AM23: 604 | AP23: Activity 18 | AQ23: 2012-05-03 | AR23: 21 | AS23: 0.11 | AT23: 4000 | AU23: 98 | AX23: Activity 18 | AY23: 2012-05-11 | AZ23: 14 | BA23: 0.04 | BB23: 3000 | BC23: 129 | BF23: Activity 18 | BG23: 2012-04-18 | BH23: 21 | BI23: 0.06 | BJ23: 1000 | BK23: 43 | BN23: Activity 18 | BO23: 2012-05-31 | BP23: 14 | BQ23: 0 | BR23: 4000 | BS23: 0 | BV23: Activity 18 | BW23: 2012-05-09 | BX23: 14 | BY23: 0.45 | BZ23: 1000 | CA23: 45
B24: Activity 19 | C24: 2012-05-09 | D24: 14 | E24: 0.04 | F24: 2000 | G24: 54 | J24: Activity 19 | K24: 2012-05-29 | L24: 7 | M24: 0 | N24: 4000 | O24: 0 | R24: Activity 19 | S24: 2012-05-04 | T24: 7 | U24: 0 | V24: 1000 | W24: 0 | Z24: Activity 19 | AA24: 2012-05-22 | AB24: 7 | AC24: 0.2 | AD24: 5000 | AE24: 541 | AH24: Activity 19 | AI24: 2012-05-09 | AJ24: 14 | AK24: 0 | AL24: 2000 | AM24: 0 | AP24: Activity 19 | AQ24: 2012-05-22 | AR24: 14 | AS24: 0 | AT24: 3000 | AU24: 0 | AX24: Activity 19 | AY24: 2012-05-23 | AZ24: 7 | BA24: 0.3 | BB24: 2000 | BC24: 561 | BF24: Activity 19 | BG24: 2012-05-07 | BH24: 14 | BI24: 0 | BJ24: 2000 | BK24: 0 | BN24: Activity 19 | BO24: 2012-06-13 | BP24: 14 | BQ24: 0 | BR24: 1000 | BS24: 0 | BV24: Activity 19 | BW24: 2012-05-25 | BX24: 7 | BY24: 0.04 | BZ24: 1000 | CA24: 14
B25: Activity 20 | C25: 2012-05-29 | D25: 21 | E25: 0.1 | F25: 3000 | G25: 155 | J25: Activity 20 | K25: 2012-06-18 | L25: 7 | M25: 0.61 | N25: 1000 | O25: 637 | R25: Activity 20 | S25: 2012-05-15 | T25: 21 | U25: 0.51 | V25: 2000 | W25: 40 | Z25: Activity 20 | AA25: 2012-06-11 | AB25: 21 | AC25: 0 | AD25: 5000 | AE25: 0 | AH25: Activity 20 | AI25: 2012-05-18 | AJ25: 21 | AK25: 0 | AL25: 2000 | AM25: 0 | AP25: Activity 20 | AQ25: 2012-06-01 | AR25: 7 | AS25: 0 | AT25: 4000 | AU25: 0 | AX25: Activity 20 | AY25: 2012-06-05 | AZ25: 14 | BA25: 0.34 | BB25: 2000 | BC25: 259 | BF25: Activity 20 | BG25: 2012-05-16 | BH25: 7 | BI25: 0.37 | BJ25: 4000 | BK25: 7 | BN25: Activity 20 | BO25: 2012-06-25 | BP25: 14 | BQ25: 0 | BR25: 3000 | BS25: 0 | BV25: Activity 20 | BW25: 2012-06-12 | BX25: 14 | BY25: 0 | BZ25: 5000 | CA25: 0
B26: Activity 21 | C26: 2012-06-13 | D26: 21 | E26: 0.35 | F26: 3000 | G26: 77 | J26: Activity 21 | K26: 2012-06-28 | L26: 7 | M26: 0 | N26: 4000 | O26: 0 | R26: Activity 21 | S26: 2012-05-31 | T26: 21 | U26: 0.53 | V26: 2000 | W26: 278 | Z26: Activity 21 | AA26: 2012-06-22 | AB26: 21 | AC26: 0.26 | AD26: 5000 | AE26: 210 | AH26: Activity 21 | AI26: 2012-05-31 | AJ26: 21 | AK26: 0.24 | AL26: 1000 | AM26: 104 | AP26: Activity 21 | AQ26: 2012-06-12 | AR26: 7 | AS26: 0 | AT26: 2000 | AU26: 0 | AX26: Activity 21 | AY26: 2012-06-22 | AZ26: 21 | BA26: 0 | BB26: 2000 | BC26: 0 | BF26: Activity 21 | BG26: 2012-05-30 | BH26: 7 | BI26: 0 | BJ26: 1000 | BK26: 0 | BN26: Activity 21 | BO26: 2012-07-12 | BP26: 7 | BQ26: 0.7 | BR26: 2000 | BS26: 1225 | BV26: Activity 21 | BW26: 2012-06-21 | BX26: 7 | BY26: 0.15 | BZ26: 5000 | CA26: 806
B27: Activity 22 | C27: 2012-06-27 | D27: 7 | E27: 0.11 | F27: 3000 | G27: 140 | J27: Activity 22 | K27: 2012-07-16 | L27: 14 | M27: 0.38 | N27: 2000 | O27: 456 | R27: Activity 22 | S27: 2012-06-19 | T27: 7 | U27: 0 | V27: 1000 | W27: 0 | Z27: Activity 22 | AA27: 2012-07-04 | AB27: 7 | AC27: 0.68 | AD27: 4000 | AE27: 1997 | AH27: Activity 22 | AI27: 2012-06-18 | AJ27: 14 | AK27: 0 | AL27: 2000 | AM27: 0 | AP27: Activity 22 | AQ27: 2012-06-29 | AR27: 7 | AS27: 0 | AT27: 1000 | AU27: 0 | AX27: Activity 22 | AY27: 2012-07-09 | AZ27: 7 | BA27: 0.64 | BB27: 5000 | BC27: 1792 | BF27: Activity 22 | BG27: 2012-06-12 | BH27: 14 | BI27: 0.32 | BJ27: 4000 | BK27: 990 | BN27: Activity 22 | BO27: 2012-07-30 | BP27: 14 | BQ27: 0.55 | BR27: 1000 | BS27: 540 | BV27: Activity 22 | BW27: 2012-07-02 | BX27: 14 | BY27: 0.25 | BZ27: 4000 | CA27: 866
B28: Activity 23 | C28: 2012-07-10 | D28: 7 | E28: 0.54 | F28: 4000 | G28: 1058 | J28: Activity 23 | K28: 2012-07-25 | L28: 21 | M28: 0 | N28: 2000 | O28: 0 | R28: Activity 23 | S28: 2012-07-04 | T28: 21 | U28: 0 | V28: 2000 | W28: 0 | Z28: Activity 23 | AA28: 2012-07-18 | AB28: 7 | AC28: 0.07 | AD28: 1000 | AE28: 29 | AH28: Activity 23 | AI28: 2012-07-03 | AJ28: 21 | AK28: 0 | AL28: 5000 | AM28: 0 | AP28: Activity 23 | AQ28: 2012-07-13 | AR28: 14 | AS28: 0 | AT28: 3000 | AU28: 0 | AX28: Activity 23 | AY28: 2012-07-24 | AZ28: 21 | BA28: 0 | BB28: 4000 | BC28: 0 | BF28: Activity 23 | BG28: 2012-06-25 | BH28: 7 | BI28: 0.02 | BJ28: 4000 | BK28: 46 | BN28: Activity 23 | BO28: 2012-08-15 | BP28: 14 | BQ28: 0 | BR28: 3000 | BS28: 0 | BV28: Activity 23 | BW28: 2012-07-11 | BX28: 7 | BY28: 0 | BZ28: 1000 | CA28: 0
B29: Activity 24 | C29: 2012-07-27 | D29: 7 | E29: 0 | F29: 2000 | G29: 0 | J29: Activity 24 | K29: 2012-08-07 | L29: 14 | M29: 0.21 | N29: 4000 | O29: 317 | R29: Activity 24 | S29: 2012-07-24 | T29: 7 | U29: 0.47 | V29: 5000 | W29: 1731 | Z29: Activity 24 | AA29: 2012-08-03 | AB29: 21 | AC29: 0 | AD29: 5000 | AE29: 0 | AH29: Activity 24 | AI29: 2012-07-19 | AJ29: 7 | AK29: 0.25 | AL29: 5000 | AM29: 876 | AP29: Activity 24 | AQ29: 2012-07-31 | AR29: 21 | AS29: 0.08 | AT29: 1000 | AU29: 33 | AX29: Activity 24 | AY29: 2012-08-10 | AZ29: 14 | BA29: 0.31 | BB29: 2000 | BC29: 654 | BF29: Activity 24 | BG29: 2012-07-12 | BH29: 14 | BI29: 0.18 | BJ29: 3000 | BK29: 290 | BN29: Activity 24 | BO29: 2012-08-31 | BP29: 14 | BQ29: 0 | BR29: 4000 | BS29: 0 | BV29: Activity 24 | BW29: 2012-07-20 | BX29: 7 | BY29: 0 | BZ29: 1000 | CA29: 0
B30: Activity 25 | C30: 2012-08-08 | D30: 7 | E30: 0 | F30: 5000 | G30: 0 | J30: Activity 25 | K30: 2012-08-27 | L30: 14 | M30: 0 | N30: 3000 | O30: 0 | R30: Activity 25 | S30: 2012-08-03 | T30: 14 | U30: 0 | V30: 5000 | W30: 0 | Z30: Activity 25 | AA30: 2012-08-23 | AB30: 7 | AC30: 0 | AD30: 2000 | AE30: 0 | AH30: Activity 25 | AI30: 2012-08-03 | AJ30: 7 | AK30: 0 | AL30: 5000 | AM30: 0 | AP30: Activity 25 | AQ30: 2012-08-13 | AR30: 14 | AS30: 0.46 | AT30: 4000 | AU30: 769 | AX30: Activity 25 | AY30: 2012-08-27 | AZ30: 14 | BA30: 0.58 | BB30: 1000 | BC30: 617 | BF30: Activity 25 | BG30: 2012-08-01 | BH30: 14 | BI30: 0 | BJ30: 4000 | BK30: 0 | BN30: Activity 25 | BO30: 2012-09-18 | BP30: 14 | BQ30: 0 | BR30: 1000 | BS30: 0 | BV30: Activity 25 | BW30: 2012-08-03 | BX30: 7 | BY30: 0 | BZ30: 2000 | CA30: 0
B31: Activity 26 | C31: 2012-08-20 | D31: 21 | E31: 0 | F31: 3000 | G31: 0 | J31: Activity 26 | K31: 2012-09-11 | L31: 21 | M31: 0.36 | N31: 3000 | O31: 855 | Z31: Activity 26 | AA31: 2012-09-12 | AB31: 14 | AC31: 0.69 | AD31: 5000 | AE31: 2520 | AH31: Activity 26 | AI31: 2012-08-17 | AJ31: 14 | AK31: 0 | AL31: 1000 | AM31: 0 | AP31: Activity 26 | AQ31: 2012-08-31 | AR31: 7 | AS31: 0.49 | AT31: 4000 | AU31: 1199 | AX31: Activity 26 | AY31: 2012-09-06 | AZ31: 7 | BA31: 0 | BB31: 5000 | BC31: 0 | BF31: Activity 26 | BG31: 2012-08-10 | BH31: 14 | BI31: 0 | BJ31: 1000 | BK31: 0 | BN31: Activity 26 | BO31: 2012-09-27 | BP31: 21 | BQ31: 0 | BR31: 4000 | BS31: 0 | BV31: Activity 26 | BW31: 2012-08-17 | BX31: 21 | BY31: 0 | BZ31: 1000 | CA31: 0
B32: Activity 27 | C32: 2012-09-06 | D32: 21 | E32: 0.37 | F32: 1000 | G32: 69 | J32: Activity 27 | K32: 2012-09-25 | L32: 7 | M32: 0 | N32: 4000 | O32: 0 | Z32: Activity 27 | AA32: 2012-09-25 | AB32: 7 | AC32: 0.7 | AD32: 2000 | AE32: 1283 | AH32: Activity 27 | AI32: 2012-09-04 | AJ32: 21 | AK32: 0.69 | AL32: 2000 | AM32: 900 | AP32: Activity 27 | AQ32: 2012-09-17 | AR32: 21 | AS32: 0 | AT32: 5000 | AU32: 0 | AX32: Activity 27 | AY32: 2012-09-18 | AZ32: 21 | BA32: 0 | BB32: 2000 | BC32: 0 | BF32: Activity 27 | BG32: 2012-08-24 | BH32: 14 | BI32: 0.55 | BJ32: 4000 | BK32: 2172 | BN32: Activity 27 | BO32: 2012-10-16 | BP32: 14 | BQ32: 0.39 | BR32: 1000 | BS32: 150 | BV32: Activity 27 | BW32: 2012-09-06 | BX32: 7 | BY32: 0 | BZ32: 3000 | CA32: 0
B33: Activity 28 | C33: 2012-09-20 | D33: 21 | E33: 0 | F33: 2000 | G33: 0 | J33: Activity 28 | K33: 2012-10-08 | L33: 14 | M33: 0 | N33: 5000 | O33: 0 | Z33: Activity 28 | AA33: 2012-10-04 | AB33: 21 | AC33: 0.66 | AD33: 1000 | AE33: 538 | AH33: Activity 28 | AI33: 2012-09-13 | AJ33: 21 | AK33: 0.18 | AL33: 3000 | AM33: 548 | AP33: Activity 28 | AQ33: 2012-10-04 | AR33: 7 | AS33: 0 | AT33: 3000 | AU33: 0 | AX33: Activity 28 | AY33: 2012-10-01 | AZ33: 7 | BA33: 0.52 | BB33: 5000 | BC33: 512 | BF33: Activity 28 | BG33: 2012-09-07 | BH33: 21 | BI33: 0 | BJ33: 4000 | BK33: 0 | BN33: Activity 28 | BO33: 2012-10-25 | BP33: 7 | BQ33: 0.16 | BR33: 4000 | BS33: 166 | BV33: Activity 28 | BW33: 2012-09-20 | BX33: 14 | BY33: 0 | BZ33: 2000 | CA33: 0
B34: Activity 29 | C34: 2012-10-03 | D34: 7 | E34: 0 | F34: 4000 | G34: 0 | J34: Activity 29 | K34: 2012-10-25 | L34: 21 | M34: 0.01 | N34: 2000 | O34: 6 | Z34: Activity 29 | AA34: 2012-10-23 | AB34: 7 | AC34: 0 | AD34: 3000 | AE34: 0 | AH34: Activity 29 | AI34: 2012-10-02 | AJ34: 14 | AK34: 0 | AL34: 4000 | AM34: 0 | AP34: Activity 29 | AQ34: 2012-10-17 | AR34: 7 | AS34: 0.29 | AT34: 2000 | AU34: 12 | AX34: Activity 29 | AY34: 2012-10-15 | AZ34: 7 | BA34: 0.46 | BB34: 5000 | BC34: 922 | BF34: Activity 29 | BG34: 2012-09-24 | BH34: 7 | BI34: 0 | BJ34: 5000 | BK34: 0 | BN34: Activity 29 | BO34: 2012-11-13 | BP34: 14 | BQ34: 0.11 | BR34: 1000 | BS34: 102 | BV34: Activity 29 | BW34: 2012-10-02 | BX34: 14 | BY34: 0 | BZ34: 4000 | CA34: 0
B35: Activity 30 | C35: 2012-10-23 | D35: 7 | E35: 0.38 | F35: 3000 | G35: 169 | J35: Activity 30 | K35: 2012-11-12 | L35: 14 | M35: 0 | N35: 3000 | O35: 0 | Z35: Activity 30 | AA35: 2012-11-09 | AB35: 14 | AC35: 0.14 | AD35: 2000 | AE35: 196 | AH35: Activity 30 | AI35: 2012-10-11 | AJ35: 7 | AK35: 0 | AL35: 4000 | AM35: 0 | AP35: Activity 30 | AQ35: 2012-11-02 | AR35: 14 | AS35: 0.6 | AT35: 5000 | AU35: 1446 | AX35: Activity 30 | AY35: 2012-10-29 | AZ35: 7 | BA35: 0.12 | BB35: 4000 | BC35: 438 | BF35: Activity 30 | BG35: 2012-10-12 | BH35: 7 | BI35: 0 | BJ35: 4000 | BK35: 0 | BN35: Activity 30 | BO35: 2012-11-22 | BP35: 21 | BQ35: 0.4 | BR35: 4000 | BS35: 1335 | BV35: Activity 30 | BW35: 2012-10-19 | BX35: 21 | BY35: 0.35 | BZ35: 4000 | CA35: 94
B36: Activity 31 | C36: 2012-11-06 | D36: 14 | E36: 0 | F36: 2000 | G36: 0 | J36: Activity 31 | K36: 2012-11-22 | L36: 7 | M36: 0.38 | N36: 5000 | O36: 25 | Z36: Activity 31 | AA36: 2012-11-23 | AB36: 14 | AC36: 0.58 | AD36: 1000 | AE36: 454 | AH36: Activity 31 | AI36: 2012-10-31 | AJ36: 21 | AK36: 0.17 | AL36: 5000 | AM36: 525 | AP36: Activity 31 | AQ36: 2012-11-15 | AR36: 14 | AS36: 0.33 | AT36: 3000 | AU36: 253 | AX36: Activity 31 | AY36: 2012-11-13 | AZ36: 7 | BA36: 0.28 | BB36: 1000 | BC36: 53 | BF36: Activity 31 | BG36: 2012-11-01 | BH36: 7 | BI36: 0.19 | BJ36: 1000 | BK36: 87 | BN36: Activity 31 | BO36: 2012-12-03 | BP36: 14 | BQ36: 0 | BR36: 2000 | BS36: 0 | BV36: Activity 31 | BW36: 2012-11-01 | BX36: 21 | BY36: 0 | BZ36: 4000 | CA36: 0
B37: Activity 32 | C37: 2012-11-22 | D37: 7 | E37: 0.26 | F37: 2000 | G37: 492 | J37: Activity 32 | K37: 2012-12-12 | L37: 21 | M37: 0.27 | N37: 4000 | O37: 666 | Z37: Activity 32 | AA37: 2012-12-10 | AB37: 21 | AC37: 0.48 | AD37: 4000 | AE37: 1725 | AH37: Activity 32 | AI37: 2012-11-16 | AJ37: 7 | AK37: 0 | AL37: 1000 | AM37: 0 | AP37: Activity 32 | AQ37: 2012-11-30 | AR37: 14 | AS37: 0.69 | AT37: 3000 | AU37: 1270 | AX37: Activity 32 | AY37: 2012-11-22 | AZ37: 21 | BA37: 0.28 | BB37: 5000 | BC37: 938 | BF37: Activity 32 | BG37: 2012-11-19 | BH37: 7 | BI37: 0.47 | BJ37: 4000 | BK37: 1222 | BN37: Activity 32 | BO37: 2012-12-20 | BP37: 21 | BQ37: 0 | BR37: 3000 | BS37: 0 | BV37: Activity 32 | BW37: 2012-11-13 | BX37: 7 | BY37: 0.05 | BZ37: 2000 | CA37: 79
B38: Activity 33 | C38: 2012-12-03 | D38: 14 | E38: 0 | F38: 5000 | G38: 0 | J38: Activity 33 | K38: 2012-12-31 | L38: 14 | M38: 0 | N38: 5000 | O38: 0 | Z38: Activity 33 | AA38: 2012-12-20 | AB38: 7 | AC38: 0 | AD38: 3000 | AE38: 0 | AH38: Activity 33 | AI38: 2012-12-03 | AJ38: 14 | AK38: 0.52 | AL38: 5000 | AM38: 204 | AP38: Activity 33 | AQ38: 2012-12-12 | AR38: 21 | AS38: 0 | AT38: 3000 | AU38: 0 | AX38: Activity 33 | AY38: 2012-12-10 | AZ38: 21 | BA38: 0 | BB38: 1000 | BC38: 0 | BF38: Activity 33 | BG38: 2012-12-05 | BH38: 7 | BI38: 0.57 | BJ38: 5000 | BK38: 1533 | BN38: Activity 33 | BO38: 2013-01-04 | BP38: 21 | BQ38: 0 | BR38: 2000 | BS38: 0 | BV38: Activity 33 | BW38: 2012-12-03 | BX38: 7 | BY38: 0 | BZ38: 1000 | CA38: 0
B39: Activity 34 | C39: 2012-12-17 | D39: 14 | E39: 0 | F39: 3000 | G39: 0 | J39: Activity 34 | K39: 2013-01-18 | L39: 7 | M39: 0 | N39: 1000 | O39: 0 | Z39: Activity 34 | AA39: 2013-01-07 | AB39: 14 | AC39: 0.7 | AD39: 5000 | AE39: 3207 | AH39: Activity 34 | AI39: 2012-12-21 | AJ39: 21 | AK39: 0.66 | AL39: 2000 | AM39: 29 | AP39: Activity 34 | AQ39: 2012-12-26 | AR39: 21 | AS39: 0 | AT39: 2000 | AU39: 0 | AX39: Activity 34 | AY39: 2012-12-20 | AZ39: 14 | BA39: 0.41 | BB39: 5000 | BC39: 1617 | BF39: Activity 34 | BG39: 2012-12-18 | BH39: 14 | BI39: 0 | BJ39: 4000 | BK39: 0 | BN39: Activity 34 | BO39: 2013-01-16 | BP39: 21 | BQ39: 0 | BR39: 3000 | BS39: 0 | BV39: Activity 34 | BW39: 2012-12-12 | BX39: 14 | BY39: 0 | BZ39: 1000 | CA39: 0
B40: Activity 35 | C40: 2012-12-31 | D40: 14 | E40: 0.16 | F40: 2000 | G40: 204 | J40: Activity 35 | K40: 2013-02-07 | L40: 7 | M40: 0 | N40: 4000 | O40: 0 | Z40: Activity 35 | AA40: 2013-01-23 | AB40: 7 | AC40: 0 | AD40: 1000 | AE40: 0 | AH40: Activity 35 | AI40: 2013-01-08 | AJ40: 14 | AK40: 0.39 | AL40: 1000 | AM40: 419 | AP40: Activity 35 | AQ40: 2013-01-15 | AR40: 21 | AS40: 0.03 | AT40: 1000 | AU40: 23 | AX40: Activity 35 | AY40: 2013-01-04 | AZ40: 14 | BA40: 0.02 | BB40: 2000 | BC40: 21 | BF40: Activity 35 | BG40: 2013-01-07 | BH40: 21 | BI40: 0.61 | BJ40: 4000 | BK40: 2432 | BN40: Activity 35 | BO40: 2013-01-25 | BP40: 21 | BQ40: 0 | BR40: 5000 | BS40: 0 | BV40: Activity 35 | BW40: 2013-01-01 | BX40: 21 | BY40: 0.55 | BZ40: 2000 | CA40: 765
B41: Activity 36 | C41: 2013-01-09 | D41: 7 | E41: 0 | F41: 3000 | G41: 0 | J41: Activity 36 | K41: 2013-02-21 | L41: 14 | M41: 0.21 | N41: 5000 | O41: 559 | Z41: Activity 36 | AA41: 2013-02-11 | AB41: 14 | AC41: 0.41 | AD41: 5000 | AE41: 912 | AH41: Activity 36 | AI41: 2013-01-23 | AJ41: 7 | AK41: 0.3 | AL41: 5000 | AM41: 681 | AP41: Activity 36 | AQ41: 2013-01-25 | AR41: 14 | AS41: 0.15 | AT41: 2000 | AU41: 82 | AX41: Activity 36 | AY41: 2013-01-15 | AZ41: 14 | BA41: 0.64 | BB41: 3000 | BC41: 1149 | BF41: Activity 36 | BG41: 2013-01-16 | BH41: 14 | BI41: 0 | BJ41: 3000 | BK41: 0 | BN41: Activity 36 | BO41: 2013-02-13 | BP41: 7 | BQ41: 0 | BR41: 5000 | BS41: 0 | BV41: Activity 36 | BW41: 2013-01-14 | BX41: 14 | BY41: 0.19 | BZ41: 3000 | CA41: 81
B42: Activity 37 | C42: 2013-01-25 | D42: 14 | E42: 0 | F42: 4000 | G42: 0 | J42: Activity 37 | K42: 2013-03-11 | L42: 7 | M42: 0 | N42: 4000 | O42: 0 | Z42: Activity 37 | AA42: 2013-03-01 | AB42: 14 | AC42: 0 | AD42: 4000 | AE42: 0 | AH42: Activity 37 | AI42: 2013-02-04 | AJ42: 21 | AK42: 0.39 | AL42: 3000 | AM42: 986 | AP42: Activity 37 | AQ42: 2013-02-12 | AR42: 7 | AS42: 0 | AT42: 3000 | AU42: 0 | AX42: Activity 37 | AY42: 2013-02-04 | AZ42: 7 | BA42: 0.19 | BB42: 2000 | BC42: 220 | BF42: Activity 37 | BG42: 2013-01-25 | BH42: 14 | BI42: 0 | BJ42: 1000 | BK42: 0 | BN42: Activity 37 | BO42: 2013-03-01 | BP42: 14 | BQ42: 0 | BR42: 5000 | BS42: 0 | BV42: Activity 37 | BW42: 2013-01-28 | BX42: 7 | BY42: 0 | BZ42: 1000 | CA42: 0
B43: Activity 38 | C43: 2013-02-05 | D43: 14 | E43: 0 | F43: 1000 | G43: 0 | J43: Activity 38 | K43: 2013-03-26 | L43: 21 | M43: 0.24 | N43: 4000 | O43: 261 | Z43: Activity 38 | AA43: 2013-03-13 | AB43: 14 | AC43: 0.5 | AD43: 3000 | AE43: 1027 | AH43: Activity 38 | AI43: 2013-02-22 | AJ43: 14 | AK43: 0.01 | AL43: 1000 | AM43: 11 | AP43: Activity 38 | AQ43: 2013-02-28 | AR43: 7 | AS43: 0.34 | AT43: 4000 | AU43: 153 | AX43: Activity 38 | AY43: 2013-02-19 | AZ43: 21 | BA43: 0 | BB43: 4000 | BC43: 0 | BF43: Activity 38 | BG43: 2013-02-08 | BH43: 21 | BI43: 0.59 | BJ43: 1000 | BK43: 511 | BN43: Activity 38 | BO43: 2013-03-14 | BP43: 21 | BQ43: 0.42 | BR43: 2000 | BS43: 125 | BV43: Activity 38 | BW43: 2013-02-08 | BX43: 7 | BY43: 0.42 | BZ43: 2000 | CA43: 205
B44: Activity 39 | C44: 2013-02-20 | D44: 21 | E44: 0.02 | F44: 3000 | G44: 7 | J44: Activity 39 | K44: 2013-04-12 | L44: 14 | M44: 0.17 | N44: 1000 | O44: 109 | Z44: Activity 39 | AA44: 2013-04-01 | AB44: 7 | AC44: 0.66 | AD44: 3000 | AE44: 1450 | AH44: Activity 39 | AI44: 2013-03-13 | AJ44: 7 | AK44: 0 | AL44: 3000 | AM44: 0 | AP44: Activity 39 | AQ44: 2013-03-12 | AR44: 7 | AS44: 0.44 | AT44: 4000 | AU44: 1839 | AX44: Activity 39 | AY44: 2013-03-11 | AZ44: 21 | BA44: 0 | BB44: 1000 | BC44: 0 | BF44: Activity 39 | BG44: 2013-02-22 | BH44: 14 | BI44: 0.62 | BJ44: 2000 | BK44: 1138 | BN44: Activity 39 | BO44: 2013-03-26 | BP44: 7 | BQ44: 0 | BR44: 1000 | BS44: 0 | BV44: Activity 39 | BW44: 2013-02-21 | BX44: 7 | BY44: 0 | BZ44: 2000 | CA44: 0
B45: Activity 40 | C45: 2013-03-06 | D45: 21 | E45: 0.42 | F45: 2000 | G45: 172 | J45: Activity 40 | K45: 2013-05-02 | L45: 14 | M45: 0 | N45: 4000 | O45: 0 | Z45: Activity 40 | AA45: 2013-04-16 | AB45: 7 | AC45: 0 | AD45: 5000 | AE45: 0 | AH45: Activity 40 | AI45: 2013-03-22 | AJ45: 7 | AK45: 0 | AL45: 1000 | AM45: 0 | AP45: Activity 40 | AQ45: 2013-03-29 | AR45: 21 | AS45: 0 | AT45: 5000 | AU45: 0 | AX45: Activity 40 | AY45: 2013-03-29 | AZ45: 14 | BA45: 0.33 | BB45: 3000 | BC45: 8 | BF45: Activity 40 | BG45: 2013-03-07 | BH45: 7 | BI45: 0.33 | BJ45: 4000 | BK45: 1297 | BN45: Activity 40 | BO45: 2013-04-10 | BP45: 7 | BQ45: 0 | BR45: 3000 | BS45: 0 | BV45: Activity 40 | BW45: 2013-03-07 | BX45: 14 | BY45: 0.15 | BZ45: 4000 | CA45: 451

Sheet Risks & Issues
B2: Risks | F2: (1 to 5) | I2: Issues | M2: (1 to 5)
B3: ID | C3: In Project | D3: Risk Description | E3: Mitigation Plan | F3: Severity | I3: ID | J3: In Project | K3: Description | L3: Assigned to | M3: Criticality | N3: Due date | O3: Closed?
B4: 1 | C4: CBM Development | D4: Some complicated risk | F4: 1 | I4: 1 | J4: Riggs-A-lot decomissioning | K4: Some very simple issue | L4: Person Name13 | M4: 2
B5: 2 | C5: Riggs-A-lot decomissioning | D5: Some very complicated risk | F5: 1 | I5: 2 | J5: ABC Integration | K5: Some very simple issue | L5: Person Name13 | M5: 3 | N5: 2012-12-05
B6: 3 | C6: ASSOC Maintenance | D6: Some very unforeseen risk | E6: Our plan | F6: 4 | I6: 3 | J6: 12th Annual Customer Convention | K6: Some simple issue | L6: Person Name3 | M6: 3 | N6: 2012-11-30
B7: 4 | C7: HRM Rollout | D7: Some very simple risk | F7: 5 | I7: 4 | J7: Riggs-A-lot decomissioning | K7: Some very unforeseen issue | L7: Person Name12 | M7: 2 | N7: 2012-12-04
B8: 5 | C8: 12th Annual Customer Convention | D8: Some very simple risk | F8: 5 | I8: 5 | J8: 12th Annual Customer Convention | K8: Some very simple issue | L8: Person Name3 | M8: 5 | N8: 2012-12-06
B9: 6 | C9: HRM Rollout | D9: Some very simple risk | E9: Our plan | F9: 3 | I9: 6 | J9: ASSOC Maintenance | K9: Some simple issue | L9: Person Name12 | M9: 5 | N9: 2012-12-04 | O9: Yes
B10: 7 | C10: Six Sigma Assessment | D10: Some very simple risk | F10: 1 | I10: 7 | J10: Six Sigma Assessment | K10: Some complicated issue | L10: Person Name11 | M10: 2
B11: 8 | C11: ABC Integration | D11: Some complicated risk | F11: 3 | I11: 8 | J11: Riggs-A-lot decomissioning | K11: Some very complicated issue | L11: Person Name12 | M11: 3 | N11: 2012-11-30
B12: 9 | C12: CBM Development | D12: Some very simple risk | F12: 5 | I12: 9 | J12: ASSOC Maintenance | K12: Some very unforeseen issue | L12: Person Name12 | M12: 5 | N12: 2012-11-30
B13: 10 | C13: CBM Development | D13: Some very simple risk | F13: 3 | I13: 10 | J13: 12th Annual Customer Convention | K13: Some very simple issue | L13: Person Name15 | M13: 4
B14: 11 | C14: CBM Development | D14: Some very simple risk | F14: 3 | I14: 11 | J14: Riggs-A-lot decomissioning | K14: Some very complicated issue | L14: Person Name1 | M14: 4 | N14: 2012-12-03
B15: 12 | C15: Six Sigma Assessment | D15: Some unforeseen risk | F15: 2 | I15: 12 | J15: Six Sigma Assessment | K15: Some very complicated issue | L15: Person Name10 | M15: 5 | N15: 2012-11-29
B16: 13 | C16: HRM Rollout | D16: Some very simple risk | F16: 2 | I16: 13 | J16: ABC Integration | K16: Some very unforeseen issue | L16: Person Name5 | M16: 4 | N16: 2012-12-03
B17: 14 | C17: ASSOC Maintenance | D17: Some very unforeseen risk | F17: 5 | I17: 14 | J17: Six Sigma Assessment | K17: Some very complicated issue | L17: Person Name13 | M17: 1
B18: 15 | C18: CBM Development | D18: Some very simple risk | F18: 5 | I18: 15 | J18: ABC Integration | K18: Some very simple issue | L18: Person Name14 | M18: 3 | N18: 2012-12-03
B19: 16 | C19: ABC Integration | D19: Some very unforeseen risk | F19: 1 | I19: 16 | J19: ABC Integration | K19: Some very simple issue | L19: Person Name7 | M19: 3 | N19: 2012-12-05
B20: 17 | C20: HRM Rollout | D20: Some complicated risk | F20: 2 | I20: 17 | J20: 12th Annual Customer Convention | K20: Some very simple issue | L20: Person Name8 | M20: 1
B21: 18 | C21: CBM Development | D21: Some simple risk | E21: Our plan | F21: 1 | I21: 18 | J21: Morlott Highway | K21: Some very complicated issue | L21: Person Name13 | M21: 4 | N21: 2012-12-06
B22: 19 | C22: HRM Rollout | D22: Some very complicated risk | F22: 3 | I22: 19 | J22: ABC Integration | K22: Some very simple issue | L22: Person Name10 | M22: 3 | N22: 2012-12-07
B23: 20 | C23: Riggs-A-lot decomissioning | D23: Some very complicated risk | F23: 5 | I23: 20 | J23: CBM Development | K23: Some very unforeseen issue | L23: Person Name8 | M23: 4 | N23: 2012-12-03
B24: 21 | C24: Morlott Highway | D24: Some very complicated risk | F24: 3 | I24: 21 | J24: Six Sigma Assessment | K24: Some very complicated issue | L24: Person Name16 | M24: 3 | N24: 2012-12-03 | O24: Yes
B25: 22 | C25: 12th Annual Customer Convention | D25: Some very unforeseen risk | F25: 2 | I25: 22 | J25: ASSOC Maintenance | K25: Some complicated issue | L25: Person Name2 | M25: 3 | N25: 2012-11-28
B26: 23 | C26: 12th Annual Customer Convention | D26: Some very simple risk | F26: 3 | I26: 23 | J26: ABC Integration | K26: Some very simple issue | L26: Person Name7 | M26: 4
B27: 24 | C27: ASSOC Maintenance | D27: Some complicated risk | F27: 1 | I27: 24 | J27: HRM Rollout | K27: Some simple issue | L27: Person Name14 | M27: 1
B28: 25 | C28: CBM Development | D28: Some very unforeseen risk | F28: 2 | I28: 25 | J28: ASSOC Maintenance | K28: Some very unforeseen issue | L28: Person Name14 | M28: 2 | N28: 2012-12-06

Sheet Settings
B4: List of Holidays | E4: Project Progress Traffic Light thresholds | H4: Prepared by
B5: Date | C5: Reason | E5: Green | F5: 0.75 | H5: Name | I5: John Doe
B6: 2012-01-01 | C6: New years eve | E6: Amber | F6: 0.4 | H6: Email | I6: john.doe@mail.com
B7: 2012-12-25 | C7: Christmas | H7: Date | I7: =TODAY() -> 2012-11-19
B8: 2013-01-01 | C8: New years eve
B9: 2013-12-25 | C9: Christmas
B10: 2014-01-01 | C10: New years eve
B11: 2014-12-25 | C11: Christmas

Sheet Sorting (hidden)
B1: Sorting Projects by Sort order Please do not edit this sheet
J2: 20
B3: Sort Types | I3: Value | J3: Disp
B4: % Done (0 -> 100%) | C4: 1 | H4: Max Risks | I4: =INDEX($C$15:$C$64,MATCH(MAX(H15:H64),H15:H64,0)) -> CBM Development | J4: ="Most: "&LEFT(I4,$J$2)&REPT("…",LEN(I4)>$J$2) -> Most: CBM Development
B5: Due Date (Now -> Later) | C5: 1 | H5: Max Open Issues | I5: =INDEX($C$15:$C$64,MATCH(MAX(G15:G64),G15:G64,0)) -> ABC Integration | J5: ="Most: "&LEFT(I5,$J$2)&REPT("…",LEN(I5)>$J$2) -> Most: ABC Integration
B6: % Budget Spent (100 -> 0) | C6: 0
B7: Open Issues (a lot -> a few) | C7: 0 | H7: ="Showing top "&IF(Calculations!$C$5=0,"5",(Calculations!$C$5+1)&" to "&(Calculations!$C$5+5))&" projects "&IF(valSortType=6,"in ","by ")&LOWER(INDEX(lstSortTypes,valSortType)) -> Showing top 5 projects by due date (now -> later)
B8: Risks (a lot -> a few) | C8: 0
B9: Original Order | C9: 1
B11: Sort Type | C11: 2 | E11: Count | F11: =COUNTA(tblProjects[Project Name]) -> 8
B12: Sort Type Desc | C12: =INDEX(lstSortTypes,$C$11) -> Due Date (Now -> Later)
L13: Ascending / Descending: | M13: =INDEX($C$4:$C$9,valSortType) -> 1 | O13: Sorted
B14: # | C14: Project | D14: % Done | E14: Due Date | F14: % Budget Spent | G14: No. of Issues Pending | H14: No. of Risks Unaddressed | I14: ID | K14: Sort Column | L14: De-dup | M14: Sort Order | O14: ID
B15: 1 | C15: =INDEX(tblProjects[Project Name],$B15) -> ABC Integration | D15: =INDEX(tblProjects[% Done],$B15) -> 0.84 | E15: =INDEX(tblProjects[Deadline],$B15) -> 41741 | F15: =INDEX(tblProjects[Spent ($)],$B15)/INDEX(tblProjects[Budget ($)],$B15) -> 0.8117975207 | G15: =COUNTIFS(tblIssues[In Project],$C15,tblIssues[Closed?],"<>Yes") -> 6 | H15: =COUNTIFS(tblRisks[In Project],$C15,tblRisks[Mitigation Plan],"") -> 2 | I15: =INDEX(tblProjects[ID],B15) -> 1 | K15: =INDEX($D15:$I15,valSortType) -> 41741 | L15: =K15+(0.00000001)*$B15 -> 41741 | M15: =RANK(L15,lstPrjSortItems,$M$13) -> 7 | O15: =INDEX($I$15:$I$64,MATCH($B15,$M$15:$M$64,0)) -> 3
B16: 2 | C16: =INDEX(tblProjects[Project Name],$B16) -> Morlott Highway | D16: =INDEX(tblProjects[% Done],$B16) -> 0.91 | E16: =INDEX(tblProjects[Deadline],$B16) -> 41833 | F16: =INDEX(tblProjects[Spent ($)],$B16)/INDEX(tblProjects[Budget ($)],$B16) -> 0.7981492147 | G16: =COUNTIFS(tblIssues[In Project],$C16,tblIssues[Closed?],"<>Yes") -> 1 | H16: =COUNTIFS(tblRisks[In Project],$C16,tblRisks[Mitigation Plan],"") -> 1 | I16: =INDEX(tblProjects[ID],B16) -> 2 | K16: 41833 | L16: =K16+(0.00000001)*$B16 -> 41833 | M16: =RANK(L16,lstPrjSortItems,$M$13) -> 8 | O16: =INDEX($I$15:$I$64,MATCH($B16,$M$15:$M$64,0)) -> 5
B17: 3 | C17: =INDEX(tblProjects[Project Name],$B17) -> Riggs-A-lot decomissioning | D17: =INDEX(tblProjects[% Done],$B17) -> 0.5 | E17: =INDEX(tblProjects[Deadline],$B17) -> 41347 | F17: =INDEX(tblProjects[Spent ($)],$B17)/INDEX(tblProjects[Budget ($)],$B17) -> 0.5891830239 | G17: =COUNTIFS(tblIssues[In Project],$C17,tblIssues[Closed?],"<>Yes") -> 4 | H17: =COUNTIFS(tblRisks[In Project],$C17,tblRisks[Mitigation Plan],"") -> 2 | I17: =INDEX(tblProjects[ID],B17) -> 3 | K17: 41347 | L17: 41347 | M17: =RANK(L17,lstPrjSortItems,$M$13) -> 1 | O17: 8
B18: 4 | C18: =INDEX(tblProjects[Project Name],$B18) -> 12th Annual Customer Convention | D18: =INDEX(tblProjects[% Done],$B18) -> 0.79 | E18: =INDEX(tblProjects[Deadline],$B18) -> 41567 | F18: =INDEX(tblProjects[Spent ($)],$B18)/INDEX(tblProjects[Budget ($)],$B18) -> 0.9089693878 | G18: =COUNTIFS(tblIssues[In Project],$C18,tblIssues[Closed?],"<>Yes") -> 4 | H18: =COUNTIFS(tblRisks[In Project],$C18,tblRisks[Mitigation Plan],"") -> 3 | I18: =INDEX(tblProjects[ID],B18) -> 4 | K18: 41567 | L18: 41567 | M18: =RANK(L18,lstPrjSortItems,$M$13) -> 5 | O18: 6
B19: 5 | C19: =INDEX(tblProjects[Project Name],$B19) -> Six Sigma Assessment | D19: =INDEX(tblProjects[% Done],$B19) -> 0.86 | E19: =INDEX(tblProjects[Deadline],$B19) -> 41357 | F19: =INDEX(tblProjects[Spent ($)],$B19)/INDEX(tblProjects[Budget ($)],$B19) -> 0.728011236 | G19: =COUNTIFS(tblIssues[In Project],$C19,tblIssues[Closed?],"<>Yes") -> 3 | H19: =COUNTIFS(tblRisks[In Project],$C19,tblRisks[Mitigation Plan],"") -> 2 | I19: =INDEX(tblProjects[ID],B19) -> 5 | K19: 41357 | L19: 41357 | M19: =RANK(L19,lstPrjSortItems,$M$13) -> 2 | O19: 4
B20: 6 | C20: =INDEX(tblProjects[Project Name],$B20) -> CBM Development | D20: =INDEX(tblProjects[% Done],$B20) -> 1 | E20: =INDEX(tblProjects[Deadline],$B20) -> 41560 | F20: =INDEX(tblProjects[Spent ($)],$B20)/INDEX(tblProjects[Budget ($)],$B20) -> 0.6238112583 | G20: =COUNTIFS(tblIssues[In Project],$C20,tblIssues[Closed?],"<>Yes") -> 1 | H20: =COUNTIFS(tblRisks[In Project],$C20,tblRisks[Mitigation Plan],"") -> 6 | I20: =INDEX(tblProjects[ID],B20) -> 6 | K20: 41560 | L20: 41560 | M20: =RANK(L20,lstPrjSortItems,$M$13) -> 4 | O20: 7
B21: 7 | C21: =INDEX(tblProjects[Project Name],$B21) -> ASSOC Maintenance | D21: =INDEX(tblProjects[% Done],$B21) -> 0.91 | E21: =INDEX(tblProjects[Deadline],$B21) -> 41726 | F21: =INDEX(tblProjects[Spent ($)],$B21)/INDEX(tblProjects[Budget ($)],$B21) -> 0.8901506173 | G21: =COUNTIFS(tblIssues[In Project],$C21,tblIssues[Closed?],"<>Yes") -> 3 | H21: =COUNTIFS(tblRisks[In Project],$C21,tblRisks[Mitigation Plan],"") -> 2 | I21: =INDEX(tblProjects[ID],B21) -> 7 | K21: 41726 | L21: 41726 | M21: =RANK(L21,lstPrjSortItems,$M$13) -> 6 | O21: 1
B22: 8 | C22: =INDEX(tblProjects[Project Name],$B22) -> HRM Rollout | D22: =INDEX(tblProjects[% Done],$B22) -> 0.81 | E22: =INDEX(tblProjects[Deadline],$B22) -> 41498 | F22: =INDEX(tblProjects[Spent ($)],$B22)/INDEX(tblProjects[Budget ($)],$B22) -> 0.532378882 | G22: =COUNTIFS(tblIssues[In Project],$C22,tblIssues[Closed?],"<>Yes") -> 1 | H22: =COUNTIFS(tblRisks[In Project],$C22,tblRisks[Mitigation Plan],"") -> 4 | I22: =INDEX(tblProjects[ID],B22) -> 8 | K22: 41498 | L22: 41498 | M22: =RANK(L22,lstPrjSortItems,$M$13) -> 3 | O22: 2
B23: 9 | C23: =INDEX(tblProjects[Project Name],$B23) ->  | D23: =INDEX(tblProjects[% Done],$B23) ->  | E23: =INDEX(tblProjects[Deadline],$B23) ->  | F23: =INDEX(tblProjects[Spent ($)],$B23)/INDEX(tblProjects[Budget ($)],$B23) ->  | G23: =COUNTIFS(tblIssues[In Project],$C23,tblIssues[Closed?],"<>Yes") -> 0 | H23: =COUNTIFS(tblRisks[In Project],$C23,tblRisks[Mitigation Plan],"") -> 0 | I23: =INDEX(tblProjects[ID],B23) ->  | M23: =RANK(L23,lstPrjSortItems,$M$13) -> 
B24: 10 | C24: =INDEX(tblProjects[Project Name],$B24) ->  | D24: =INDEX(tblProjects[% Done],$B24) ->  | E24: =INDEX(tblProjects[Deadline],$B24) ->  | F24: =INDEX(tblProjects[Spent ($)],$B24)/INDEX(tblProjects[Budget ($)],$B24) ->  | G24: =COUNTIFS(tblIssues[In Project],$C24,tblIssues[Closed?],"<>Yes") -> 0 | H24: =COUNTIFS(tblRisks[In Project],$C24,tblRisks[Mitigation Plan],"") -> 0 | I24: =INDEX(tblProjects[ID],B24) ->  | M24: =RANK(L24,lstPrjSortItems,$M$13) -> 
B25: 11 | C25: =INDEX(tblProjects[Project Name],$B25) ->  | D25: =INDEX(tblProjects[% Done],$B25) ->  | E25: =INDEX(tblProjects[Deadline],$B25) ->  | F25: =INDEX(tblProjects[Spent ($)],$B25)/INDEX(tblProjects[Budget ($)],$B25) ->  | G25: =COUNTIFS(tblIssues[In Project],$C25,tblIssues[Closed?],"<>Yes") -> 0 | H25: =COUNTIFS(tblRisks[In Project],$C25,tblRisks[Mitigation Plan],"") -> 0 | I25: =INDEX(tblProjects[ID],B25) ->  | M25: =RANK(L25,lstPrjSortItems,$M$13) -> 
B26: 12 | C26: =INDEX(tblProjects[Project Name],$B26) ->  | D26: =INDEX(tblProjects[% Done],$B26) ->  | E26: =INDEX(tblProjects[Deadline],$B26) ->  | F26: =INDEX(tblProjects[Spent ($)],$B26)/INDEX(tblProjects[Budget ($)],$B26) ->  | G26: =COUNTIFS(tblIssues[In Project],$C26,tblIssues[Closed?],"<>Yes") -> 0 | H26: =COUNTIFS(tblRisks[In Project],$C26,tblRisks[Mitigation Plan],"") -> 0 | I26: =INDEX(tblProjects[ID],B26) ->  | M26: =RANK(L26,lstPrjSortItems,$M$13) -> 
B27: 13 | C27: =INDEX(tblProjects[Project Name],$B27) ->  | D27: =INDEX(tblProjects[% Done],$B27) ->  | E27: =INDEX(tblProjects[Deadline],$B27) ->  | F27: =INDEX(tblProjects[Spent ($)],$B27)/INDEX(tblProjects[Budget ($)],$B27) ->  | G27: =COUNTIFS(tblIssues[In Project],$C27,tblIssues[Closed?],"<>Yes") -> 0 | H27: =COUNTIFS(tblRisks[In Project],$C27,tblRisks[Mitigation Plan],"") -> 0 | I27: =INDEX(tblProjects[ID],B27) ->  | M27: =RANK(L27,lstPrjSortItems,$M$13) -> 
B28: 14 | C28: =INDEX(tblProjects[Project Name],$B28) ->  | D28: =INDEX(tblProjects[% Done],$B28) ->  | E28: =INDEX(tblProjects[Deadline],$B28) ->  | F28: =INDEX(tblProjects[Spent ($)],$B28)/INDEX(tblProjects[Budget ($)],$B28) ->  | G28: =COUNTIFS(tblIssues[In Project],$C28,tblIssues[Closed?],"<>Yes") -> 0 | H28: =COUNTIFS(tblRisks[In Project],$C28,tblRisks[Mitigation Plan],"") -> 0 | I28: =INDEX(tblProjects[ID],B28) ->  | M28: =RANK(L28,lstPrjSortItems,$M$13) -> 
B29: 15 | C29: =INDEX(tblProjects[Project Name],$B29) ->  | D29: =INDEX(tblProjects[% Done],$B29) ->  | E29: =INDEX(tblProjects[Deadline],$B29) ->  | F29: =INDEX(tblProjects[Spent ($)],$B29)/INDEX(tblProjects[Budget ($)],$B29) ->  | G29: =COUNTIFS(tblIssues[In Project],$C29,tblIssues[Closed?],"<>Yes") -> 0 | H29: =COUNTIFS(tblRisks[In Project],$C29,tblRisks[Mitigation Plan],"") -> 0 | I29: =INDEX(tblProjects[ID],B29) ->  | M29: =RANK(L29,lstPrjSortItems,$M$13) -> 
B30: 16 | C30: =INDEX(tblProjects[Project Name],$B30) ->  | D30: =INDEX(tblProjects[% Done],$B30) ->  | E30: =INDEX(tblProjects[Deadline],$B30) ->  | F30: =INDEX(tblProjects[Spent ($)],$B30)/INDEX(tblProjects[Budget ($)],$B30) ->  | G30: =COUNTIFS(tblIssues[In Project],$C30,tblIssues[Closed?],"<>Yes") -> 0 | H30: =COUNTIFS(tblRisks[In Project],$C30,tblRisks[Mitigation Plan],"") -> 0 | I30: =INDEX(tblProjects[ID],B30) ->  | M30: =RANK(L30,lstPrjSortItems,$M$13) -> 
B31: 17 | C31: =INDEX(tblProjects[Project Name],$B31) ->  | D31: =INDEX(tblProjects[% Done],$B31) ->  | E31: =INDEX(tblProjects[Deadline],$B31) ->  | F31: =INDEX(tblProjects[Spent ($)],$B31)/INDEX(tblProjects[Budget ($)],$B31) ->  | G31: =COUNTIFS(tblIssues[In Project],$C31,tblIssues[Closed?],"<>Yes") -> 0 | H31: =COUNTIFS(tblRisks[In Project],$C31,tblRisks[Mitigation Plan],"") -> 0 | I31: =INDEX(tblProjects[ID],B31) ->  | M31: =RANK(L31,lstPrjSortItems,$M$13) -> 
B32: 18 | C32: =INDEX(tblProjects[Project Name],$B32) ->  | D32: =INDEX(tblProjects[% Done],$B32) ->  | E32: =INDEX(tblProjects[Deadline],$B32) ->  | F32: =INDEX(tblProjects[Spent ($)],$B32)/INDEX(tblProjects[Budget ($)],$B32) ->  | G32: =COUNTIFS(tblIssues[In Project],$C32,tblIssues[Closed?],"<>Yes") -> 0 | H32: =COUNTIFS(tblRisks[In Project],$C32,tblRisks[Mitigation Plan],"") -> 0 | I32: =INDEX(tblProjects[ID],B32) ->  | M32: =RANK(L32,lstPrjSortItems,$M$13) -> 
B33: 19 | C33: =INDEX(tblProjects[Project Name],$B33) ->  | D33: =INDEX(tblProjects[% Done],$B33) ->  | E33: =INDEX(tblProjects[Deadline],$B33) ->  | F33: =INDEX(tblProjects[Spent ($)],$B33)/INDEX(tblProjects[Budget ($)],$B33) ->  | G33: =COUNTIFS(tblIssues[In Project],$C33,tblIssues[Closed?],"<>Yes") -> 0 | H33: =COUNTIFS(tblRisks[In Project],$C33,tblRisks[Mitigation Plan],"") -> 0 | I33: =INDEX(tblProjects[ID],B33) ->  | M33: =RANK(L33,lstPrjSortItems,$M$13) -> 
B34: 20 | C34: =INDEX(tblProjects[Project Name],$B34) ->  | D34: =INDEX(tblProjects[% Done],$B34) ->  | E34: =INDEX(tblProjects[Deadline],$B34) ->  | F34: =INDEX(tblProjects[Spent ($)],$B34)/INDEX(tblProjects[Budget ($)],$B34) ->  | G34: =COUNTIFS(tblIssues[In Project],$C34,tblIssues[Closed?],"<>Yes") -> 0 | H34: =COUNTIFS(tblRisks[In Project],$C34,tblRisks[Mitigation Plan],"") -> 0 | I34: =INDEX(tblProjects[ID],B34) ->  | M34: =RANK(L34,lstPrjSortItems,$M$13) -> 
B35: 21 | C35: =INDEX(tblProjects[Project Name],$B35) ->  | D35: =INDEX(tblProjects[% Done],$B35) ->  | E35: =INDEX(tblProjects[Deadline],$B35) ->  | F35: =INDEX(tblProjects[Spent ($)],$B35)/INDEX(tblProjects[Budget ($)],$B35) ->  | G35: =COUNTIFS(tblIssues[In Project],$C35,tblIssues[Closed?],"<>Yes") -> 0 | H35: =COUNTIFS(tblRisks[In Project],$C35,tblRisks[Mitigation Plan],"") -> 0 | I35: =INDEX(tblProjects[ID],B35) ->  | M35: =RANK(L35,lstPrjSortItems,$M$13) -> 
B36: 22 | C36: =INDEX(tblProjects[Project Name],$B36) ->  | D36: =INDEX(tblProjects[% Done],$B36) ->  | E36: =INDEX(tblProjects[Deadline],$B36) ->  | F36: =INDEX(tblProjects[Spent ($)],$B36)/INDEX(tblProjects[Budget ($)],$B36) ->  | G36: =COUNTIFS(tblIssues[In Project],$C36,tblIssues[Closed?],"<>Yes") -> 0 | H36: =COUNTIFS(tblRisks[In Project],$C36,tblRisks[Mitigation Plan],"") -> 0 | I36: =INDEX(tblProjects[ID],B36) ->  | M36: =RANK(L36,lstPrjSortItems,$M$13) -> 
B37: 23 | C37: =INDEX(tblProjects[Project Name],$B37) ->  | D37: =INDEX(tblProjects[% Done],$B37) ->  | E37: =INDEX(tblProjects[Deadline],$B37) ->  | F37: =INDEX(tblProjects[Spent ($)],$B37)/INDEX(tblProjects[Budget ($)],$B37) ->  | G37: =COUNTIFS(tblIssues[In Project],$C37,tblIssues[Closed?],"<>Yes") -> 0 | H37: =COUNTIFS(tblRisks[In Project],$C37,tblRisks[Mitigation Plan],"") -> 0 | I37: =INDEX(tblProjects[ID],B37) ->  | M37: =RANK(L37,lstPrjSortItems,$M$13) -> 
B38: 24 | C38: =INDEX(tblProjects[Project Name],$B38) ->  | D38: =INDEX(tblProjects[% Done],$B38) ->  | E38: =INDEX(tblProjects[Deadline],$B38) ->  | F38: =INDEX(tblProjects[Spent ($)],$B38)/INDEX(tblProjects[Budget ($)],$B38) ->  | G38: =COUNTIFS(tblIssues[In Project],$C38,tblIssues[Closed?],"<>Yes") -> 0 | H38: =COUNTIFS(tblRisks[In Project],$C38,tblRisks[Mitigation Plan],"") -> 0 | I38: =INDEX(tblProjects[ID],B38) ->  | M38: =RANK(L38,lstPrjSortItems,$M$13) -> 
B39: 25 | C39: =INDEX(tblProjects[Project Name],$B39) ->  | D39: =INDEX(tblProjects[% Done],$B39) ->  | E39: =INDEX(tblProjects[Deadline],$B39) ->  | F39: =INDEX(tblProjects[Spent ($)],$B39)/INDEX(tblProjects[Budget ($)],$B39) ->  | G39: =COUNTIFS(tblIssues[In Project],$C39,tblIssues[Closed?],"<>Yes") -> 0 | H39: =COUNTIFS(tblRisks[In Project],$C39,tblRisks[Mitigation Plan],"") -> 0 | I39: =INDEX(tblProjects[ID],B39) ->  | M39: =RANK(L39,lstPrjSortItems,$M$13) -> 
B40: 26 | C40: =INDEX(tblProjects[Project Name],$B40) ->  | D40: =INDEX(tblProjects[% Done],$B40) ->  | E40: =INDEX(tblProjects[Deadline],$B40) ->  | F40: =INDEX(tblProjects[Spent ($)],$B40)/INDEX(tblProjects[Budget ($)],$B40) ->  | G40: =COUNTIFS(tblIssues[In Project],$C40,tblIssues[Closed?],"<>Yes") -> 0 | H40: =COUNTIFS(tblRisks[In Project],$C40,tblRisks[Mitigation Plan],"") -> 0 | I40: =INDEX(tblProjects[ID],B40) ->  | M40: =RANK(L40,lstPrjSortItems,$M$13) -> 
B41: 27 | C41: =INDEX(tblProjects[Project Name],$B41) ->  | D41: =INDEX(tblProjects[% Done],$B41) ->  | E41: =INDEX(tblProjects[Deadline],$B41) ->  | F41: =INDEX(tblProjects[Spent ($)],$B41)/INDEX(tblProjects[Budget ($)],$B41) ->  | G41: =COUNTIFS(tblIssues[In Project],$C41,tblIssues[Closed?],"<>Yes") -> 0 | H41: =COUNTIFS(tblRisks[In Project],$C41,tblRisks[Mitigation Plan],"") -> 0 | I41: =INDEX(tblProjects[ID],B41) ->  | M41: =RANK(L41,lstPrjSortItems,$M$13) -> 
B42: 28 | C42: =INDEX(tblProjects[Project Name],$B42) ->  | D42: =INDEX(tblProjects[% Done],$B42) ->  | E42: =INDEX(tblProjects[Deadline],$B42) ->  | F42: =INDEX(tblProjects[Spent ($)],$B42)/INDEX(tblProjects[Budget ($)],$B42) ->  | G42: =COUNTIFS(tblIssues[In Project],$C42,tblIssues[Closed?],"<>Yes") -> 0 | H42: =COUNTIFS(tblRisks[In Project],$C42,tblRisks[Mitigation Plan],"") -> 0 | I42: =INDEX(tblProjects[ID],B42) ->  | M42: =RANK(L42,lstPrjSortItems,$M$13) -> 
B43: 29 | C43: =INDEX(tblProjects[Project Name],$B43) ->  | D43: =INDEX(tblProjects[% Done],$B43) ->  | E43: =INDEX(tblProjects[Deadline],$B43) ->  | F43: =INDEX(tblProjects[Spent ($)],$B43)/INDEX(tblProjects[Budget ($)],$B43) ->  | G43: =COUNTIFS(tblIssues[In Project],$C43,tblIssues[Closed?],"<>Yes") -> 0 | H43: =COUNTIFS(tblRisks[In Project],$C43,tblRisks[Mitigation Plan],"") -> 0 | I43: =INDEX(tblProjects[ID],B43) ->  | M43: =RANK(L43,lstPrjSortItems,$M$13) -> 
B44: 30 | C44: =INDEX(tblProjects[Project Name],$B44) ->  | D44: =INDEX(tblProjects[% Done],$B44) ->  | E44: =INDEX(tblProjects[Deadline],$B44) ->  | F44: =INDEX(tblProjects[Spent ($)],$B44)/INDEX(tblProjects[Budget ($)],$B44) ->  | G44: =COUNTIFS(tblIssues[In Project],$C44,tblIssues[Closed?],"<>Yes") -> 0 | H44: =COUNTIFS(tblRisks[In Project],$C44,tblRisks[Mitigation Plan],"") -> 0 | I44: =INDEX(tblProjects[ID],B44) ->  | M44: =RANK(L44,lstPrjSortItems,$M$13) -> 
B45: 31 | C45: =INDEX(tblProjects[Project Name],$B45) ->  | D45: =INDEX(tblProjects[% Done],$B45) ->  | E45: =INDEX(tblProjects[Deadline],$B45) ->  | F45: =INDEX(tblProjects[Spent ($)],$B45)/INDEX(tblProjects[Budget ($)],$B45) ->  | G45: =COUNTIFS(tblIssues[In Project],$C45,tblIssues[Closed?],"<>Yes") -> 0 | H45: =COUNTIFS(tblRisks[In Project],$C45,tblRisks[Mitigation Plan],"") -> 0 | I45: =INDEX(tblProjects[ID],B45) ->  | M45: =RANK(L45,lstPrjSortItems,$M$13) -> 
B46: 32 | C46: =INDEX(tblProjects[Project Name],$B46) ->  | D46: =INDEX(tblProjects[% Done],$B46) ->  | E46: =INDEX(tblProjects[Deadline],$B46) ->  | F46: =INDEX(tblProjects[Spent ($)],$B46)/INDEX(tblProjects[Budget ($)],$B46) ->  | G46: =COUNTIFS(tblIssues[In Project],$C46,tblIssues[Closed?],"<>Yes") -> 0 | H46: =COUNTIFS(tblRisks[In Project],$C46,tblRisks[Mitigation Plan],"") -> 0 | I46: =INDEX(tblProjects[ID],B46) ->  | M46: =RANK(L46,lstPrjSortItems,$M$13) -> 
B47: 33 | C47: =INDEX(tblProjects[Project Name],$B47) ->  | D47: =INDEX(tblProjects[% Done],$B47) ->  | E47: =INDEX(tblProjects[Deadline],$B47) ->  | F47: =INDEX(tblProjects[Spent ($)],$B47)/INDEX(tblProjects[Budget ($)],$B47) ->  | G47: =COUNTIFS(tblIssues[In Project],$C47,tblIssues[Closed?],"<>Yes") -> 0 | H47: =COUNTIFS(tblRisks[In Project],$C47,tblRisks[Mitigation Plan],"") -> 0 | I47: =INDEX(tblProjects[ID],B47) ->  | K47: =INDEX($D47:$I47,valSortType) ->  | M47: =RANK(L47,lstPrjSortItems,$M$13) -> 
B48: 34 | C48: =INDEX(tblProjects[Project Name],$B48) ->  | D48: =INDEX(tblProjects[% Done],$B48) ->  | E48: =INDEX(tblProjects[Deadline],$B48) ->  | F48: =INDEX(tblProjects[Spent ($)],$B48)/INDEX(tblProjects[Budget ($)],$B48) ->  | G48: =COUNTIFS(tblIssues[In Project],$C48,tblIssues[Closed?],"<>Yes") -> 0 | H48: =COUNTIFS(tblRisks[In Project],$C48,tblRisks[Mitigation Plan],"") -> 0 | I48: =INDEX(tblProjects[ID],B48) ->  | M48: =RANK(L48,lstPrjSortItems,$M$13) -> 
B49: 35 | C49: =INDEX(tblProjects[Project Name],$B49) ->  | D49: =INDEX(tblProjects[% Done],$B49) ->  | E49: =INDEX(tblProjects[Deadline],$B49) ->  | F49: =INDEX(tblProjects[Spent ($)],$B49)/INDEX(tblProjects[Budget ($)],$B49) ->  | G49: =COUNTIFS(tblIssues[In Project],$C49,tblIssues[Closed?],"<>Yes") -> 0 | H49: =COUNTIFS(tblRisks[In Project],$C49,tblRisks[Mitigation Plan],"") -> 0 | I49: =INDEX(tblProjects[ID],B49) ->  | M49: =RANK(L49,lstPrjSortItems,$M$13) -> 
B50: 36 | C50: =INDEX(tblProjects[Project Name],$B50) ->  | D50: =INDEX(tblProjects[% Done],$B50) ->  | E50: =INDEX(tblProjects[Deadline],$B50) ->  | F50: =INDEX(tblProjects[Spent ($)],$B50)/INDEX(tblProjects[Budget ($)],$B50) ->  | G50: =COUNTIFS(tblIssues[In Project],$C50,tblIssues[Closed?],"<>Yes") -> 0 | H50: =COUNTIFS(tblRisks[In Project],$C50,tblRisks[Mitigation Plan],"") -> 0 | I50: =INDEX(tblProjects[ID],B50) ->  | M50: =RANK(L50,lstPrjSortItems,$M$13) -> 
B51: 37 | C51: =INDEX(tblProjects[Project Name],$B51) ->  | D51: =INDEX(tblProjects[% Done],$B51) ->  | E51: =INDEX(tblProjects[Deadline],$B51) ->  | F51: =INDEX(tblProjects[Spent ($)],$B51)/INDEX(tblProjects[Budget ($)],$B51) ->  | G51: =COUNTIFS(tblIssues[In Project],$C51,tblIssues[Closed?],"<>Yes") -> 0 | H51: =COUNTIFS(tblRisks[In Project],$C51,tblRisks[Mitigation Plan],"") -> 0 | I51: =INDEX(tblProjects[ID],B51) ->  | M51: =RANK(L51,lstPrjSortItems,$M$13) -> 
B52: 38 | C52: =INDEX(tblProjects[Project Name],$B52) ->  | D52: =INDEX(tblProjects[% Done],$B52) ->  | E52: =INDEX(tblProjects[Deadline],$B52) ->  | F52: =INDEX(tblProjects[Spent ($)],$B52)/INDEX(tblProjects[Budget ($)],$B52) ->  | G52: =COUNTIFS(tblIssues[In Project],$C52,tblIssues[Closed?],"<>Yes") -> 0 | H52: =COUNTIFS(tblRisks[In Project],$C52,tblRisks[Mitigation Plan],"") -> 0 | I52: =INDEX(tblProjects[ID],B52) ->  | M52: =RANK(L52,lstPrjSortItems,$M$13) -> 
B53: 39 | C53: =INDEX(tblProjects[Project Name],$B53) ->  | D53: =INDEX(tblProjects[% Done],$B53) ->  | E53: =INDEX(tblProjects[Deadline],$B53) ->  | F53: =INDEX(tblProjects[Spent ($)],$B53)/INDEX(tblProjects[Budget ($)],$B53) ->  | G53: =COUNTIFS(tblIssues[In Project],$C53,tblIssues[Closed?],"<>Yes") -> 0 | H53: =COUNTIFS(tblRisks[In Project],$C53,tblRisks[Mitigation Plan],"") -> 0 | I53: =INDEX(tblProjects[ID],B53) ->  | M53: =RANK(L53,lstPrjSortItems,$M$13) -> 
B54: 40 | C54: =INDEX(tblProjects[Project Name],$B54) ->  | D54: =INDEX(tblProjects[% Done],$B54) ->  | E54: =INDEX(tblProjects[Deadline],$B54) ->  | F54: =INDEX(tblProjects[Spent ($)],$B54)/INDEX(tblProjects[Budget ($)],$B54) ->  | G54: =COUNTIFS(tblIssues[In Project],$C54,tblIssues[Closed?],"<>Yes") -> 0 | H54: =COUNTIFS(tblRisks[In Project],$C54,tblRisks[Mitigation Plan],"") -> 0 | I54: =INDEX(tblProjects[ID],B54) ->  | M54: =RANK(L54,lstPrjSortItems,$M$13) -> 
B55: 41 | C55: =INDEX(tblProjects[Project Name],$B55) ->  | D55: =INDEX(tblProjects[% Done],$B55) ->  | E55: =INDEX(tblProjects[Deadline],$B55) ->  | F55: =INDEX(tblProjects[Spent ($)],$B55)/INDEX(tblProjects[Budget ($)],$B55) ->  | G55: =COUNTIFS(tblIssues[In Project],$C55,tblIssues[Closed?],"<>Yes") -> 0 | H55: =COUNTIFS(tblRisks[In Project],$C55,tblRisks[Mitigation Plan],"") -> 0 | I55: =INDEX(tblProjects[ID],B55) ->  | M55: =RANK(L55,lstPrjSortItems,$M$13) -> 
B56: 42 | C56: =INDEX(tblProjects[Project Name],$B56) ->  | D56: =INDEX(tblProjects[% Done],$B56) ->  | E56: =INDEX(tblProjects[Deadline],$B56) ->  | F56: =INDEX(tblProjects[Spent ($)],$B56)/INDEX(tblProjects[Budget ($)],$B56) ->  | G56: =COUNTIFS(tblIssues[In Project],$C56,tblIssues[Closed?],"<>Yes") -> 0 | H56: =COUNTIFS(tblRisks[In Project],$C56,tblRisks[Mitigation Plan],"") -> 0 | I56: =INDEX(tblProjects[ID],B56) ->  | M56: =RANK(L56,lstPrjSortItems,$M$13) -> 
B57: 43 | C57: =INDEX(tblProjects[Project Name],$B57) ->  | D57: =INDEX(tblProjects[% Done],$B57) ->  | E57: =INDEX(tblProjects[Deadline],$B57) ->  | F57: =INDEX(tblProjects[Spent ($)],$B57)/INDEX(tblProjects[Budget ($)],$B57) ->  | G57: =COUNTIFS(tblIssues[In Project],$C57,tblIssues[Closed?],"<>Yes") -> 0 | H57: =COUNTIFS(tblRisks[In Project],$C57,tblRisks[Mitigation Plan],"") -> 0 | I57: =INDEX(tblProjects[ID],B57) ->  | M57: =RANK(L57,lstPrjSortItems,$M$13) -> 
B58: 44 | C58: =INDEX(tblProjects[Project Name],$B58) ->  | D58: =INDEX(tblProjects[% Done],$B58) ->  | E58: =INDEX(tblProjects[Deadline],$B58) ->  | F58: =INDEX(tblProjects[Spent ($)],$B58)/INDEX(tblProjects[Budget ($)],$B58) ->  | G58: =COUNTIFS(tblIssues[In Project],$C58,tblIssues[Closed?],"<>Yes") -> 0 | H58: =COUNTIFS(tblRisks[In Project],$C58,tblRisks[Mitigation Plan],"") -> 0 | I58: =INDEX(tblProjects[ID],B58) ->  | M58: =RANK(L58,lstPrjSortItems,$M$13) -> 
B59: 45 | C59: =INDEX(tblProjects[Project Name],$B59) ->  | D59: =INDEX(tblProjects[% Done],$B59) ->  | E59: =INDEX(tblProjects[Deadline],$B59) ->  | F59: =INDEX(tblProjects[Spent ($)],$B59)/INDEX(tblProjects[Budget ($)],$B59) ->  | G59: =COUNTIFS(tblIssues[In Project],$C59,tblIssues[Closed?],"<>Yes") -> 0 | H59: =COUNTIFS(tblRisks[In Project],$C59,tblRisks[Mitigation Plan],"") -> 0 | I59: =INDEX(tblProjects[ID],B59) ->  | M59: =RANK(L59,lstPrjSortItems,$M$13) -> 
B60: 46 | C60: =INDEX(tblProjects[Project Name],$B60) ->  | D60: =INDEX(tblProjects[% Done],$B60) ->  | E60: =INDEX(tblProjects[Deadline],$B60) ->  | F60: =INDEX(tblProjects[Spent ($)],$B60)/INDEX(tblProjects[Budget ($)],$B60) ->  | G60: =COUNTIFS(tblIssues[In Project],$C60,tblIssues[Closed?],"<>Yes") -> 0 | H60: =COUNTIFS(tblRisks[In Project],$C60,tblRisks[Mitigation Plan],"") -> 0 | I60: =INDEX(tblProjects[ID],B60) ->  | M60: =RANK(L60,lstPrjSortItems,$M$13) -> 
B61: 47 | C61: =INDEX(tblProjects[Project Name],$B61) ->  | D61: =INDEX(tblProjects[% Done],$B61) ->  | E61: =INDEX(tblProjects[Deadline],$B61) ->  | F61: =INDEX(tblProjects[Spent ($)],$B61)/INDEX(tblProjects[Budget ($)],$B61) ->  | G61: =COUNTIFS(tblIssues[In Project],$C61,tblIssues[Closed?],"<>Yes") -> 0 | H61: =COUNTIFS(tblRisks[In Project],$C61,tblRisks[Mitigation Plan],"") -> 0 | I61: =INDEX(tblProjects[ID],B61) ->  | M61: =RANK(L61,lstPrjSortItems,$M$13) -> 
B62: 48 | C62: =INDEX(tblProjects[Project Name],$B62) ->  | D62: =INDEX(tblProjects[% Done],$B62) ->  | E62: =INDEX(tblProjects[Deadline],$B62) ->  | F62: =INDEX(tblProjects[Spent ($)],$B62)/INDEX(tblProjects[Budget ($)],$B62) ->  | G62: =COUNTIFS(tblIssues[In Project],$C62,tblIssues[Closed?],"<>Yes") -> 0 | H62: =COUNTIFS(tblRisks[In Project],$C62,tblRisks[Mitigation Plan],"") -> 0 | I62: =INDEX(tblProjects[ID],B62) ->  | M62: =RANK(L62,lstPrjSortItems,$M$13) -> 
B63: 49 | C63: =INDEX(tblProjects[Project Name],$B63) ->  | D63: =INDEX(tblProjects[% Done],$B63) ->  | E63: =INDEX(tblProjects[Deadline],$B63) ->  | F63: =INDEX(tblProjects[Spent ($)],$B63)/INDEX(tblProjects[Budget ($)],$B63) ->  | G63: =COUNTIFS(tblIssues[In Project],$C63,tblIssues[Closed?],"<>Yes") -> 0 | H63: =COUNTIFS(tblRisks[In Project],$C63,tblRisks[Mitigation Plan],"") -> 0 | I63: =INDEX(tblProjects[ID],B63) ->  | M63: =RANK(L63,lstPrjSortItems,$M$13) -> 
B64: 50 | C64: =INDEX(tblProjects[Project Name],$B64) ->  | D64: =INDEX(tblProjects[% Done],$B64) ->  | E64: =INDEX(tblProjects[Deadline],$B64) ->  | F64: =INDEX(tblProjects[Spent ($)],$B64)/INDEX(tblProjects[Budget ($)],$B64) ->  | G64: =COUNTIFS(tblIssues[In Project],$C64,tblIssues[Closed?],"<>Yes") -> 0 | H64: =COUNTIFS(tblRisks[In Project],$C64,tblRisks[Mitigation Plan],"") -> 0 | I64: =INDEX(tblProjects[ID],B64) ->  | M64: =RANK(L64,lstPrjSortItems,$M$13) -> 

Sheet Calculations (hidden)
B1: Calculations Plese do not edit | F1: Program level calculations >> | P1: Totals | V1: Percents
P2: 5 | Q2: 4 | R2: 3 | S2: 2 | T2: 1 | V2: =P2 -> 5 | W2: =Q2 -> 4 | X2: 3 | Y2: 2 | Z2: 1 | AE2: 20 | AF2: In next 6 months | AG2: =COUNTIFS(F9:F13,"<="&EDATE(TODAY(),6),F9:F13,">"&TODAY()) -> 2 | AH2: =IF(AG2=1," project ends"," projects end") -> projects end | AI2: =AG2&CHAR(10)&AG3&CHAR(10)&AG4&CHAR(10)&AG5 -> 2 35 41 7 | AJ2: =AH2&CHAR(10)&AH3&CHAR(10)&AH4&CHAR(10)&AH5 -> projects end activities start activities end issues due
B3: Selected Project | C3: =D3 -> 3 | D3: 3 | F3: Total Projects | G3: =C4&" Projects" -> 8 Projects | I3: Total Budgets | J3: =SUM(tblProjects[Budget ($)]) -> 3207000 | K3: =TEXT(J3,"$##,,.0")&" mn" -> $3.2 mn | L3: Total members | M3: =SUM(tblProjects[Team Size])&" members" -> 225 members | O3: Risks | P3: =COUNTIF(tblRisks[Severity],P$2) -> 6 | Q3: =COUNTIF(tblRisks[Severity],Q$2) -> 1 | R3: =COUNTIF(tblRisks[Severity],R$2) -> 7 | S3: =COUNTIF(tblRisks[Severity],S$2) -> 5 | T3: =COUNTIF(tblRisks[Severity],T$2) -> 6 | U3: =SUM(P3:T3)&" Risks" -> 25 Risks | V3: =P3/SUM($P3:$T3) -> 0.24 | W3: =Q3/SUM($P3:$T3) -> 0.04 | X3: =R3/SUM($P3:$T3) -> 0.28 | Y3: =S3/SUM($P3:$T3) -> 0.2 | Z3: =T3/SUM($P3:$T3) -> 0.24 | AD3: Last project due by | AE3: =MAX(F9:F13) -> 41567 | AF3: Starts | AG3: =SUM(AF9:AF13) -> 35 | AH3: =IF(AG3=1," activity starts", " activities start") -> activities start
B4: Count of Projects | C4: =COUNTA(lstProjects) -> 8 | F4: Progress | G4: =SUMPRODUCT(tblProjects[% Done],tblProjects[Budget ($)])/J3 -> 0.8243997505 | I4: Total Spent | J4: =SUM(tblProjects[Spent ($)]) -> 2409613 | K4: =TEXT(J4,"$##,,.0")&" mn spent" -> $2.4 mn spent | O4: Issues | P4: =COUNTIFS(tblIssues[Criticality],P$2,tblIssues[Closed?],"<>Yes") -> 3 | Q4: =COUNTIFS(tblIssues[Criticality],Q$2,tblIssues[Closed?],"<>Yes") -> 6 | R4: =COUNTIFS(tblIssues[Criticality],R$2,tblIssues[Closed?],"<>Yes") -> 7 | S4: =COUNTIFS(tblIssues[Criticality],S$2,tblIssues[Closed?],"<>Yes") -> 4 | T4: =COUNTIFS(tblIssues[Criticality],T$2,tblIssues[Closed?],"<>Yes") -> 3 | U4: =SUM(P4:T4)&" Open" -> 23 Open | V4: =P4/SUM($P4:$T4) -> 0.1304347826 | W4: 0.2608695652 | X4: 0.3043478261 | Y4: 0.1739130435 | Z4: 0.1304347826 | AD4: Last Project | AE4: =INDEX($C$9:$C$13,MATCH(AE3,F9:F13,0)) -> 12th Annual Customer Convention | AF4: Ends | AG4: =SUM(AG9:AG13) -> 41 | AH4: =IF(AG4=1," activity ends", " activities end") -> activities end
B5: Offset | C5: 0 | I5: % | J5: =J4/J3 -> 0.7513604615 | AD5: Display | AE5: ="Last: "&LEFT(AE4,$AE$2)&REPT("…",LEN(AE4)>$AE$2)&" in "&TEXT(AE3,"mmm,yyyy") -> Last: 12th Annual Customer… in Oct,2013 | AF5: Issues | AG5: =SUM(AH9:AH13) -> 7 | AH5: =IF(AG5=1," issue due", " issues due") -> issues due
P6:  | S6: a | V6: i | Y6: ~ | AA6: ia~
N7: >=3 | P7: Display
A8: # | B8: ID | C8: Project | D8: Budget | E8: Spent | F8: Due Date | G8: % done | H8: Due in | I8: Budget Disp | J8: Team Size | K8: Table name | L8: # of Tasks | M8: # of issues | N8: # of Risks | AC8: Budget | AD8: Spent | AF8: Activity Starts | AG8: Activity Completion | AH8: Issues Due
A9: 1 | B9: =INDEX(lstSortedPrjIDs,A9+$C$5) -> 3 | C9: =IFERROR(INDEX(lstProjects,B9),"") -> Riggs-A-lot decomissioning | D9: =IFERROR(INDEX(tblProjects[Budget ($)],$B9),"") -> 377000 | E9: =IFERROR(INDEX(tblProjects[Spent ($)],$B9),"") -> 222122 | F9: =IFERROR(INDEX(tblProjects[Deadline],$B9),"") -> 41347 | G9: =IFERROR(INDEX(tblProjects[% Done],$B9),"") -> 0.5 | H9: =IF(F9="","",IF(TODAY()>=F9,IF(G9=1,"Done","Over due"),(DATEDIF(TODAY(),F9,"m")&" months"))) -> 3 months | I9: =TEXT(D9,"$ #,")&"k" -> $ 377k | J9: =IFERROR(INDEX(tblProjects[Team Size],$B9),"") -> 35 | K9: =IF(C9="","","plan"&B9) -> plan3 | L9: =IF(K9="",0,COUNTA(INDIRECT(K9&"[Activity]"))) -> 25 | M9: =COUNTIFS(tblIssues[In Project],C9,tblIssues[Closed?],"<>Yes") -> 4 | N9: =COUNTIFS(tblRisks[In Project],C9,tblRisks[Severity],$N$7) -> 1 | P9: =$P$6 ->  | Q9: =J9 -> 35 | S9: =$S$6 -> a | T9: =L9 -> 25 | V9: =$V$6 -> i | W9: =M9 -> 4 | Y9: =$Y$6 -> ~ | Z9: =N9 -> 1 | AC9: 1 | AD9: =E9/D9 -> 0.5891830239 | AF9: =IFERROR(SUMPRODUCT((lstActStarts<=EDATE(TODAY(),6))*(lstActStarts>TODAY())),0) -> 0 | AG9: =IFERROR(SUMPRODUCT((lstActEnds<=EDATE(TODAY(),6))*(lstActEnds>TODAY())),0) -> 0 | AH9: =COUNTIFS(tblIssues[Due date],">"&TODAY(),tblIssues[Due date],"<="&EDATE(TODAY(),6),tblIssues[Closed?],"",tblIssues[In Project],C9) -> 3
A10: 2 | B10: =INDEX(lstSortedPrjIDs,A10+$C$5) -> 5 | C10: Six Sigma Assessment | D10: =IFERROR(INDEX(tblProjects[Budget ($)],$B10),"") -> 445000 | E10: =IFERROR(INDEX(tblProjects[Spent ($)],$B10),"") -> 323965 | F10: =IFERROR(INDEX(tblProjects[Deadline],$B10),"") -> 41357 | G10: =IFERROR(INDEX(tblProjects[% Done],$B10),"") -> 0.86 | H10: =IF(F10="","",IF(TODAY()>=F10,IF(G10=1,"Done","Over due"),(DATEDIF(TODAY(),F10,"m")&" months"))) -> 4 months | I10: =TEXT(D10,"$ #,")&"k" -> $ 445k | J10: =IFERROR(INDEX(tblProjects[Team Size],$B10),"") -> 35 | K10: =IF(C10="","","plan"&B10) -> plan5 | L10: =IF(K10="",0,COUNTA(INDIRECT(K10&"[Activity]"))) -> 40 | M10: =COUNTIFS(tblIssues[In Project],C10,tblIssues[Closed?],"<>Yes") -> 3 | N10: =COUNTIFS(tblRisks[In Project],C10,tblRisks[Severity],$N$7) -> 0 | P10: =$P$6 ->  | Q10: =J10 -> 35 | S10: =$S$6 -> a | T10: =L10 -> 40 | V10: =$V$6 -> i | W10: =M10 -> 3 | Y10: =$Y$6 -> ~ | Z10: =N10 -> 0 | AC10: 1 | AD10: =E10/D10 -> 0.728011236 | AF10: =IFERROR(SUMPRODUCT((lstActStarts<=EDATE(TODAY(),6))*(lstActStarts>TODAY())),0) -> 8 | AG10: 10 | AH10: =COUNTIFS(tblIssues[Due date],">"&TODAY(),tblIssues[Due date],"<="&EDATE(TODAY(),6),tblIssues[Closed?],"",tblIssues[In Project],C10) -> 1
A11: 3 | B11: =INDEX(lstSortedPrjIDs,A11+$C$5) -> 8 | C11: HRM Rollout | D11: =IFERROR(INDEX(tblProjects[Budget ($)],$B11),"") -> 322000 | E11: =IFERROR(INDEX(tblProjects[Spent ($)],$B11),"") -> 171426 | F11: =IFERROR(INDEX(tblProjects[Deadline],$B11),"") -> 41498 | G11: =IFERROR(INDEX(tblProjects[% Done],$B11),"") -> 0.81 | H11: 8 months | I11: $ 322k | J11: =IFERROR(INDEX(tblProjects[Team Size],$B11),"") -> 20 | K11: plan8 | L11: 40 | M11: =COUNTIFS(tblIssues[In Project],C11,tblIssues[Closed?],"<>Yes") -> 1 | N11: =COUNTIFS(tblRisks[In Project],C11,tblRisks[Severity],$N$7) -> 3 | P11:  | Q11: 20 | S11: a | T11: 40 | V11: i | W11: 1 | Y11: ~ | Z11: 3 | AC11: 1 | AD11: 0.532378882 | AF11: =IFERROR(SUMPRODUCT((lstActStarts<=EDATE(TODAY(),6))*(lstActStarts>TODAY())),0) -> 8 | AG11: 9 | AH11: =COUNTIFS(tblIssues[Due date],">"&TODAY(),tblIssues[Due date],"<="&EDATE(TODAY(),6),tblIssues[Closed?],"",tblIssues[In Project],C11) -> 0
A12: 4 | B12: =INDEX(lstSortedPrjIDs,A12+$C$5) -> 6 | C12: CBM Development | D12: =IFERROR(INDEX(tblProjects[Budget ($)],$B12),"") -> 302000 | E12: =IFERROR(INDEX(tblProjects[Spent ($)],$B12),"") -> 188391 | F12: =IFERROR(INDEX(tblProjects[Deadline],$B12),"") -> 41560 | G12: =IFERROR(INDEX(tblProjects[% Done],$B12),"") -> 1 | H12: 10 months | I12: $ 302k | J12: =IFERROR(INDEX(tblProjects[Team Size],$B12),"") -> 30 | K12: plan6 | L12: 40 | M12: =COUNTIFS(tblIssues[In Project],C12,tblIssues[Closed?],"<>Yes") -> 1 | N12: =COUNTIFS(tblRisks[In Project],C12,tblRisks[Severity],$N$7) -> 4 | P12:  | Q12: 30 | S12: a | T12: 40 | V12: i | W12: 1 | Y12: ~ | Z12: 4 | AC12: 1 | AD12: 0.6238112583 | AF12: =IFERROR(SUMPRODUCT((lstActStarts<=EDATE(TODAY(),6))*(lstActStarts>TODAY())),0) -> 9 | AG12: 11 | AH12: =COUNTIFS(tblIssues[Due date],">"&TODAY(),tblIssues[Due date],"<="&EDATE(TODAY(),6),tblIssues[Closed?],"",tblIssues[In Project],C12) -> 1
A13: 5 | B13: =INDEX(lstSortedPrjIDs,A13+$C$5) -> 4 | C13: 12th Annual Customer Convention | D13: =IFERROR(INDEX(tblProjects[Budget ($)],$B13),"") -> 490000 | E13: =IFERROR(INDEX(tblProjects[Spent ($)],$B13),"") -> 445395 | F13: =IFERROR(INDEX(tblProjects[Deadline],$B13),"") -> 41567 | G13: =IFERROR(INDEX(tblProjects[% Done],$B13),"") -> 0.79 | H13: 11 months | I13: $ 490k | J13: =IFERROR(INDEX(tblProjects[Team Size],$B13),"") -> 35 | K13: plan4 | L13: 40 | M13: =COUNTIFS(tblIssues[In Project],C13,tblIssues[Closed?],"<>Yes") -> 4 | N13: =COUNTIFS(tblRisks[In Project],C13,tblRisks[Severity],$N$7) -> 2 | P13:  | Q13: 35 | S13: a | T13: 40 | V13: i | W13: 4 | Y13: ~ | Z13: 2 | AC13: 1 | AD13: 0.9089693878 | AF13: =IFERROR(SUMPRODUCT((lstActStarts<=EDATE(TODAY(),6))*(lstActStarts>TODAY())),0) -> 10 | AG13: 11 | AH13: =COUNTIFS(tblIssues[Due date],">"&TODAY(),tblIssues[Due date],"<="&EDATE(TODAY(),6),tblIssues[Closed?],"",tblIssues[In Project],C13) -> 2
A14: 6 | B14: =INDEX(lstSortedPrjIDs,A14+$C$5) -> 7 | C14: ASSOC Maintenance | D14: =IFERROR(INDEX(tblProjects[Budget ($)],$B14),"") -> 405000 | E14: =IFERROR(INDEX(tblProjects[Spent ($)],$B14),"") -> 360511 | F14: =IFERROR(INDEX(tblProjects[Deadline],$B14),"") -> 41726 | G14: =IFERROR(INDEX(tblProjects[% Done],$B14),"") -> 0.91 | H14: 16 months | I14: $ 405k | J14: =IFERROR(INDEX(tblProjects[Team Size],$B14),"") -> 35 | K14: plan7 | L14: 40 | M14: =COUNTIFS(tblIssues[In Project],C14,tblIssues[Closed?],"<>Yes") -> 3 | N14: =COUNTIFS(tblRisks[In Project],C14,tblRisks[Severity],$N$7) -> 2 | P14:  | Q14: 35 | S14: a | T14: 40 | V14: i | W14: 3 | Y14: ~ | Z14: 2 | AC14: 1 | AD14: 0.8901506173 | AF14: =IFERROR(SUMPRODUCT((lstActStarts<=EDATE(TODAY(),6))*(lstActStarts>TODAY())),0) -> 9 | AG14: 10 | AH14: =COUNTIFS(tblIssues[Due date],">"&TODAY(),tblIssues[Due date],"<="&EDATE(TODAY(),6),tblIssues[Closed?],"",tblIssues[In Project],C14) -> 3
A15: 7 | B15: =INDEX(lstSortedPrjIDs,A15+$C$5) -> 1 | C15: ABC Integration | D15: =IFERROR(INDEX(tblProjects[Budget ($)],$B15),"") -> 484000 | E15: =IFERROR(INDEX(tblProjects[Spent ($)],$B15),"") -> 392910 | F15: =IFERROR(INDEX(tblProjects[Deadline],$B15),"") -> 41741 | G15: =IFERROR(INDEX(tblProjects[% Done],$B15),"") -> 0.84 | H15: 16 months | I15: $ 484k | J15: =IFERROR(INDEX(tblProjects[Team Size],$B15),"") -> 20 | K15: plan1 | L15: 40 | M15: =COUNTIFS(tblIssues[In Project],C15,tblIssues[Closed?],"<>Yes") -> 6 | N15: =COUNTIFS(tblRisks[In Project],C15,tblRisks[Severity],$N$7) -> 1 | P15:  | Q15: 20 | S15: a | T15: 40 | V15: i | W15: 6 | Y15: ~ | Z15: 1 | AC15: 1 | AD15: 0.8117975207 | AF15: =IFERROR(SUMPRODUCT((lstActStarts<=EDATE(TODAY(),6))*(lstActStarts>TODAY())),0) -> 9 | AG15: 10 | AH15: =COUNTIFS(tblIssues[Due date],">"&TODAY(),tblIssues[Due date],"<="&EDATE(TODAY(),6),tblIssues[Closed?],"",tblIssues[In Project],C15) -> 5
A16: 8 | B16: =INDEX(lstSortedPrjIDs,A16+$C$5) -> 2 | C16: Morlott Highway | D16: =IFERROR(INDEX(tblProjects[Budget ($)],$B16),"") -> 382000 | E16: =IFERROR(INDEX(tblProjects[Spent ($)],$B16),"") -> 304893 | F16: =IFERROR(INDEX(tblProjects[Deadline],$B16),"") -> 41833 | G16: =IFERROR(INDEX(tblProjects[% Done],$B16),"") -> 0.91 | H16: 19 months | I16: $ 382k | J16: =IFERROR(INDEX(tblProjects[Team Size],$B16),"") -> 15 | K16: plan2 | L16: 40 | M16: =COUNTIFS(tblIssues[In Project],C16,tblIssues[Closed?],"<>Yes") -> 1 | N16: =COUNTIFS(tblRisks[In Project],C16,tblRisks[Severity],$N$7) -> 1 | P16:  | Q16: 15 | S16: a | T16: 40 | V16: i | W16: 1 | Y16: ~ | Z16: 1 | AC16: 1 | AD16: 0.7981492147 | AF16: =IFERROR(SUMPRODUCT((lstActStarts<=EDATE(TODAY(),6))*(lstActStarts>TODAY())),0) -> 10 | AG16: 11 | AH16: =COUNTIFS(tblIssues[Due date],">"&TODAY(),tblIssues[Due date],"<="&EDATE(TODAY(),6),tblIssues[Closed?],"",tblIssues[In Project],C16) -> 1
A17: 9 | B17: =INDEX(lstSortedPrjIDs,A17+$C$5) ->  | D17: =IFERROR(INDEX(tblProjects[Budget ($)],$B17),"") ->  | E17: =IFERROR(INDEX(tblProjects[Spent ($)],$B17),"") ->  | F17: =IFERROR(INDEX(tblProjects[Deadline],$B17),"") ->  | G17: =IFERROR(INDEX(tblProjects[% Done],$B17),"") ->  | I17: k | J17: =IFERROR(INDEX(tblProjects[Team Size],$B17),"") ->  | L17: 0 | M17: =COUNTIFS(tblIssues[In Project],C17,tblIssues[Closed?],"<>Yes") -> 0 | N17: =COUNTIFS(tblRisks[In Project],C17,tblRisks[Severity],$N$7) -> 0 | P17:  | S17: a | T17: 0 | V17: i | W17: 0 | Y17: ~ | Z17: 0 | AC17: 1 | AF17: =IFERROR(SUMPRODUCT((lstActStarts<=EDATE(TODAY(),6))*(lstActStarts>TODAY())),0) -> 0 | AG17: 0 | AH17: =COUNTIFS(tblIssues[Due date],">"&TODAY(),tblIssues[Due date],"<="&EDATE(TODAY(),6),tblIssues[Closed?],"",tblIssues[In Project],C17) -> 0
A18: 10 | B18: =INDEX(lstSortedPrjIDs,A18+$C$5) ->  | D18: =IFERROR(INDEX(tblProjects[Budget ($)],$B18),"") ->  | E18: =IFERROR(INDEX(tblProjects[Spent ($)],$B18),"") ->  | F18: =IFERROR(INDEX(tblProjects[Deadline],$B18),"") ->  | G18: =IFERROR(INDEX(tblProjects[% Done],$B18),"") ->  | I18: k | J18: =IFERROR(INDEX(tblProjects[Team Size],$B18),"") ->  | L18: 0 | M18: =COUNTIFS(tblIssues[In Project],C18,tblIssues[Closed?],"<>Yes") -> 0 | N18: =COUNTIFS(tblRisks[In Project],C18,tblRisks[Severity],$N$7) -> 0 | P18:  | S18: a | T18: 0 | V18: i | W18: 0 | Y18: ~ | Z18: 0 | AC18: 1 | AF18: =IFERROR(SUMPRODUCT((lstActStarts<=EDATE(TODAY(),6))*(lstActStarts>TODAY())),0) -> 0 | AG18: 0 | AH18: =COUNTIFS(tblIssues[Due date],">"&TODAY(),tblIssues[Due date],"<="&EDATE(TODAY(),6),tblIssues[Closed?],"",tblIssues[In Project],C18) -> 0
A21: Plan for Selected Project: | E21: Plan Width | G21: 90 | O21: LEGEND: | P21: =$P$6 ->  | Q21: People | S21: =$S$6 -> a | T21: Activities | V21: =$V$6 -> i | W21: Issues | Y21: =$Y$6 -> ~ | Z21: Risks
B22: ID | C22: =INDEX(lstSortedPrjIDs,valSP+$C$5) -> 8 | E22: Min Start date | G22: =MIN(INDEX(lstPlans,,2,$C$22)) -> 2011-08-27 | H22: =WEEKDAY(G22) -> 7 | K22: Label
B23: Name | C23: =INDEX(C9:C13,valSP) -> HRM Rollout | E23: Gantt Start date | G23: =IF(valGanttType=3,DATE(YEAR(G22),MONTH(G22),1),G22-CHOOSE(H22,6,0,1,2,3,4,5)) -> 2011-08-22 | H23: Offset | I23: 0 | J23: Daily | K23: =C23&" Plan" -> HRM Rollout Plan
B24: Table name | C24: ="plan"&C22 -> plan8 | E24: Total Plan Duration | G24: =NETWORKDAYS(G22,MAX(INDEX(lstPlans,,2,$C$22)),lstHolidays) -> 397 | H24: Gantt Start + Offset | J24: Weekly
B25: Offset | C25: 0 | E25: Days, Weeks or Months? | G25: 1 | H25: =G23+I23*7 -> 2011-08-22 | J25: Monthly
C27: Plan | D27: 1 | E27: 2 | F27: 3 | G27: 4 | H27: 5 | I27: 6 | L27: Plan>
B28: # | C28: ID | D28: ='Project Plans'!B5 -> Activity | E28: ='Project Plans'!C5 -> Start Date | F28: ='Project Plans'!D5 -> Duration | G28: ='Project Plans'!E5 -> % done | H28: ='Project Plans'!F5 -> Budget ($) | I28: ='Project Plans'!G5 -> Actual ($) | J28: End
B29: 1 | C29: =B29+$C$25 -> 1 | D29: =IFERROR(INDEX(lstPlans,$C29,D$27,$C$22),"") -> Activity 1 | E29: 2011-08-27 | F29: 21 | G29: 0.83 | H29: 1000 | I29: 291 | J29: =WORKDAY(E29,F29,lstHolidays) -> 2011-09-26
B30: 2 | C30: =B30+$C$25 -> 2 | D30: Activity 2 | E30: 2011-09-14 | F30: 7 | G30: 0 | H30: 1000 | I30: 0 | J30: 2011-09-23
B31: 3 | C31: 3 | D31: Activity 3 | E31: 2011-09-23 | F31: 14 | G31: 0 | H31: 5000 | I31: 0 | J31: 2011-10-13
B32: 4 | C32: 4 | D32: Activity 4 | E32: 2011-10-06 | F32: 7 | G32: 0 | H32: 4000 | I32: 0 | J32: 2011-10-17
B33: 5 | C33: 5 | D33: Activity 5 | E33: 2011-10-18 | F33: 7 | G33: 0.41 | H33: 2000 | I33: 218 | J33: 2011-10-27
B34: 6 | C34: 6 | D34: Activity 6 | E34: 2011-10-28 | F34: 14 | G34: 0.53 | H34: 5000 | I34: 259 | J34: 2011-11-17
B35: 7 | C35: 7 | D35: Activity 7 | E35: 2011-11-14 | F35: 14 | G35: 0.67 | H35: 2000 | I35: 1390 | J35: 2011-12-02
B36: 8 | C36: 8 | D36: Activity 8 | E36: 2011-12-02 | F36: 14 | G36: 0 | H36: 2000 | I36: 0 | J36: 2011-12-22
B37: 9 | C37: 9 | D37: Activity 9 | E37: 2011-12-14 | F37: 7 | G37: 0.14 | H37: 4000 | I37: 514 | J37: 2011-12-23
B38: 10 | C38: 10 | D38: Activity 10 | E38: 2011-12-27 | F38: 14 | G38: 0.36 | H38: 5000 | I38: 1043 | J38: 2012-01-16
B39: 11 | C39: 11 | D39: =IFERROR(INDEX(lstPlans,$C39,D$27,$C$22),"") -> Activity 11 | E39: 2012-01-09 | F39: 14 | G39: 0 | H39: 2000 | I39: 0 | J39: 2012-01-27
B40: 12 | C40: 12 | D40: Activity 12 | E40: 2012-01-20 | F40: 14 | G40: 0.34 | H40: 3000 | I40: 61 | J40: 2012-02-09
B41: 13 | C41: 13 | D41: Activity 13 | E41: 2012-02-08 | F41: 7 | G41: 0 | H41: 3000 | I41: 0 | J41: 2012-02-17
B42: 14 | C42: 14 | D42: Activity 14 | E42: 2012-02-27 | F42: 21 | G42: 0.36 | H42: 5000 | I42: 898 | J42: 2012-03-27
B43: 15 | C43: 15 | D43: Activity 15 | E43: 2012-03-09 | F43: 14 | G43: 0 | H43: 2000 | I43: 0 | J43: 2012-03-29
B44: 16 | C44: 16 | D44: Activity 16 | E44: 2012-03-20 | F44: 21 | G44: 0 | H44: 5000 | I44: 0 | J44: 2012-04-18
B45: 17 | C45: 17 | D45: Activity 17 | E45: 2012-03-30 | F45: 7 | G45: 0.69 | H45: 5000 | I45: 1067 | J45: 2012-04-10
B46: 18 | C46: 18 | D46: Activity 18 | E46: 2012-04-18 | F46: 21 | G46: 0.06 | H46: 1000 | I46: 43 | J46: 2012-05-17
B47: 19 | C47: 19 | D47: Activity 19 | E47: 2012-05-07 | F47: 14 | G47: 0 | H47: 2000 | I47: 0 | J47: 2012-05-25
B48: 20 | C48: 20 | D48: Activity 20 | E48: 2012-05-16 | F48: 7 | G48: 0.37 | H48: 4000 | I48: 7 | J48: 2012-05-25
A51: Issues for Selected Project
B52: =B22 -> ID | C52: 8 | E52: Max issue due date | F52: =MAX(F57:F76)+1 -> 1
B53: Name | C53: HRM Rollout | E53: Min issue due date | F53: =MIN(F57:F76) -> 0 | I53: =COUNTIF($B$57:$B$76,">0") -> 1
B55: All issues in this project | I55: Sorted by criticality & Due date and open-ness | M55: Sorted
B56: ='Risks & Issues'!I3 -> ID | C56: ='Risks & Issues'!K3 -> Description | D56: ='Risks & Issues'!L3 -> Assigned to | E56: ='Risks & Issues'!M3 -> Criticality | F56: ='Risks & Issues'!N3 -> Due date | G56: ='Risks & Issues'!O3 -> Closed? | I56: Score | J56: Sort Order | M56: IDs | N56: =C56 -> Description | O56: =D56 -> Assigned to | P56: Criticality | Q56: Due date
A57: 1 | B57: =LARGE((tblIssues[ID])*(tblIssues[In Project]=$C$53),$A57) -> 24 | C57: =INDEX(tblIssues[Description],$B57) -> Some simple issue | D57: =INDEX(tblIssues[Assigned to],$B57) -> Person Name14 | E57: =INDEX(tblIssues[Criticality],$B57) -> 1 | F57: =IFERROR(INDEX(tblIssues[Due date],$B57),"") ->  | G57: =INDEX(tblIssues[Closed?],$B57) ->  | I57: =(G57<>"Yes")*(E57)*($F$52-MAX(F57,$F$53))+(0.000001)*B57 -> 1.000024 | J57: =RANK(I57,$I$57:INDEX($I$57:$I$76,$I$53),0) -> 1 | M57: =INDEX($B$57:$B$76,MATCH($A57,$J$57:$J$76,0)) -> 24 | N57: =IFERROR(INDEX(tblIssues[Description],$M57),"") -> Some simple issue | O57: =IFERROR(INDEX(tblIssues[Assigned to],$M57),"") -> Person Name14 | P57: =IFERROR(INDEX(tblIssues[Criticality],$M57),"") -> 1 | Q57: =IFERROR(INDEX(tblIssues[Due date],$M57),"") -> 
A58: 2 | B58: =LARGE((tblIssues[ID])*(tblIssues[In Project]=$C$53),$A58) -> 0 | C58: =INDEX(tblIssues[Description],$B58) ->  | D58: =INDEX(tblIssues[Assigned to],$B58) ->  | E58: =INDEX(tblIssues[Criticality],$B58) ->  | F58: =IFERROR(INDEX(tblIssues[Due date],$B58),"") ->  | G58: =INDEX(tblIssues[Closed?],$B58) ->  | I58: =(G58<>"Yes")*(E58)*($F$52-MAX(F58,$F$53))+(0.000001)*B58 ->  | J58: =RANK(I58,$I$57:INDEX($I$57:$I$76,$I$53),0) ->  | M58: =INDEX($B$57:$B$76,MATCH($A58,$J$57:$J$76,0)) ->  | N58: =IFERROR(INDEX(tblIssues[Description],$M58),"") ->  | O58: =IFERROR(INDEX(tblIssues[Assigned to],$M58),"") ->  | P58: =IFERROR(INDEX(tblIssues[Criticality],$M58),"") ->  | Q58: =IFERROR(INDEX(tblIssues[Due date],$M58),"") -> 
A59: 3 | B59: =LARGE((tblIssues[ID])*(tblIssues[In Project]=$C$53),$A59) -> 0 | C59: =INDEX(tblIssues[Description],$B59) ->  | D59: =INDEX(tblIssues[Assigned to],$B59) ->  | E59: =INDEX(tblIssues[Criticality],$B59) ->  | F59: =IFERROR(INDEX(tblIssues[Due date],$B59),"") ->  | G59: =INDEX(tblIssues[Closed?],$B59) ->  | J59: =RANK(I59,$I$57:INDEX($I$57:$I$76,$I$53),0) ->  | N59: =IFERROR(INDEX(tblIssues[Description],$M59),"") ->  | O59: =IFERROR(INDEX(tblIssues[Assigned to],$M59),"") ->  | P59: =IFERROR(INDEX(tblIssues[Criticality],$M59),"") ->  | Q59: =IFERROR(INDEX(tblIssues[Due date],$M59),"") -> 
A60: 4 | B60: =LARGE((tblIssues[ID])*(tblIssues[In Project]=$C$53),$A60) -> 0 | C60: =INDEX(tblIssues[Description],$B60) ->  | D60: =INDEX(tblIssues[Assigned to],$B60) ->  | E60: =INDEX(tblIssues[Criticality],$B60) ->  | F60: =IFERROR(INDEX(tblIssues[Due date],$B60),"") ->  | G60: =INDEX(tblIssues[Closed?],$B60) ->  | J60: =RANK(I60,$I$57:INDEX($I$57:$I$76,$I$53),0) ->  | N60: =IFERROR(INDEX(tblIssues[Description],$M60),"") ->  | O60: =IFERROR(INDEX(tblIssues[Assigned to],$M60),"") ->  | P60: =IFERROR(INDEX(tblIssues[Criticality],$M60),"") ->  | Q60: =IFERROR(INDEX(tblIssues[Due date],$M60),"") -> 
A61: 5 | B61: =LARGE((tblIssues[ID])*(tblIssues[In Project]=$C$53),$A61) -> 0 | C61: =INDEX(tblIssues[Description],$B61) ->  | D61: =INDEX(tblIssues[Assigned to],$B61) ->  | E61: =INDEX(tblIssues[Criticality],$B61) ->  | F61: =IFERROR(INDEX(tblIssues[Due date],$B61),"") ->  | G61: =INDEX(tblIssues[Closed?],$B61) ->  | J61: =RANK(I61,$I$57:INDEX($I$57:$I$76,$I$53),0) ->  | N61: =IFERROR(INDEX(tblIssues[Description],$M61),"") ->  | O61: =IFERROR(INDEX(tblIssues[Assigned to],$M61),"") ->  | P61: =IFERROR(INDEX(tblIssues[Criticality],$M61),"") ->  | Q61: =IFERROR(INDEX(tblIssues[Due date],$M61),"") -> 
A62: 6 | B62: =LARGE((tblIssues[ID])*(tblIssues[In Project]=$C$53),$A62) -> 0 | C62: =INDEX(tblIssues[Description],$B62) ->  | D62: =INDEX(tblIssues[Assigned to],$B62) ->  | E62: =INDEX(tblIssues[Criticality],$B62) ->  | F62: =IFERROR(INDEX(tblIssues[Due date],$B62),"") ->  | G62: =INDEX(tblIssues[Closed?],$B62) ->  | J62: =RANK(I62,$I$57:INDEX($I$57:$I$76,$I$53),0) ->  | N62: =IFERROR(INDEX(tblIssues[Description],$M62),"") ->  | O62: =IFERROR(INDEX(tblIssues[Assigned to],$M62),"") ->  | P62: =IFERROR(INDEX(tblIssues[Criticality],$M62),"") ->  | Q62: =IFERROR(INDEX(tblIssues[Due date],$M62),"") -> 
A63: 7 | B63: =LARGE((tblIssues[ID])*(tblIssues[In Project]=$C$53),$A63) -> 0 | C63: =INDEX(tblIssues[Description],$B63) ->  | D63: =INDEX(tblIssues[Assigned to],$B63) ->  | E63: =INDEX(tblIssues[Criticality],$B63) ->  | F63: =IFERROR(INDEX(tblIssues[Due date],$B63),"") ->  | G63: =INDEX(tblIssues[Closed?],$B63) ->  | J63: =RANK(I63,$I$57:INDEX($I$57:$I$76,$I$53),0) ->  | N63: =IFERROR(INDEX(tblIssues[Description],$M63),"") ->  | O63: =IFERROR(INDEX(tblIssues[Assigned to],$M63),"") ->  | P63: =IFERROR(INDEX(tblIssues[Criticality],$M63),"") ->  | Q63: =IFERROR(INDEX(tblIssues[Due date],$M63),"") -> 
A64: 8 | B64: =LARGE((tblIssues[ID])*(tblIssues[In Project]=$C$53),$A64) -> 0 | C64: =INDEX(tblIssues[Description],$B64) ->  | D64: =INDEX(tblIssues[Assigned to],$B64) ->  | E64: =INDEX(tblIssues[Criticality],$B64) ->  | F64: =IFERROR(INDEX(tblIssues[Due date],$B64),"") ->  | G64: =INDEX(tblIssues[Closed?],$B64) ->  | J64: =RANK(I64,$I$57:INDEX($I$57:$I$76,$I$53),0) ->  | N64: =IFERROR(INDEX(tblIssues[Description],$M64),"") ->  | O64: =IFERROR(INDEX(tblIssues[Assigned to],$M64),"") ->  | P64: =IFERROR(INDEX(tblIssues[Criticality],$M64),"") ->  | Q64: =IFERROR(INDEX(tblIssues[Due date],$M64),"") -> 
A65: 9 | B65: =LARGE((tblIssues[ID])*(tblIssues[In Project]=$C$53),$A65) -> 0 | C65: =INDEX(tblIssues[Description],$B65) ->  | D65: =INDEX(tblIssues[Assigned to],$B65) ->  | E65: =INDEX(tblIssues[Criticality],$B65) ->  | F65: =IFERROR(INDEX(tblIssues[Due date],$B65),"") ->  | G65: =INDEX(tblIssues[Closed?],$B65) ->  | J65: =RANK(I65,$I$57:INDEX($I$57:$I$76,$I$53),0) ->  | N65: =IFERROR(INDEX(tblIssues[Description],$M65),"") ->  | O65: =IFERROR(INDEX(tblIssues[Assigned to],$M65),"") ->  | P65: =IFERROR(INDEX(tblIssues[Criticality],$M65),"") ->  | Q65: =IFERROR(INDEX(tblIssues[Due date],$M65),"") -> 
A66: 10 | B66: =LARGE((tblIssues[ID])*(tblIssues[In Project]=$C$53),$A66) -> 0 | C66: =INDEX(tblIssues[Description],$B66) ->  | D66: =INDEX(tblIssues[Assigned to],$B66) ->  | E66: =INDEX(tblIssues[Criticality],$B66) ->  | F66: =IFERROR(INDEX(tblIssues[Due date],$B66),"") ->  | G66: =INDEX(tblIssues[Closed?],$B66) ->  | J66: =RANK(I66,$I$57:INDEX($I$57:$I$76,$I$53),0) ->  | N66: =IFERROR(INDEX(tblIssues[Description],$M66),"") ->  | O66: =IFERROR(INDEX(tblIssues[Assigned to],$M66),"") ->  | P66: =IFERROR(INDEX(tblIssues[Criticality],$M66),"") ->  | Q66: =IFERROR(INDEX(tblIssues[Due date],$M66),"") -> 
A67: 11 | B67: =LARGE((tblIssues[ID])*(tblIssues[In Project]=$C$53),$A67) -> 0 | C67: =INDEX(tblIssues[Description],$B67) ->  | D67: =INDEX(tblIssues[Assigned to],$B67) ->  | E67: =INDEX(tblIssues[Criticality],$B67) ->  | F67: =IFERROR(INDEX(tblIssues[Due date],$B67),"") ->  | G67: =INDEX(tblIssues[Closed?],$B67) ->  | J67: =RANK(I67,$I$57:INDEX($I$57:$I$76,$I$53),0) ->  | N67: =IFERROR(INDEX(tblIssues[Description],$M67),"") ->  | O67: =IFERROR(INDEX(tblIssues[Assigned to],$M67),"") ->  | P67: =IFERROR(INDEX(tblIssues[Criticality],$M67),"") ->  | Q67: =IFERROR(INDEX(tblIssues[Due date],$M67),"") -> 
A68: 12 | B68: =LARGE((tblIssues[ID])*(tblIssues[In Project]=$C$53),$A68) -> 0 | C68: =INDEX(tblIssues[Description],$B68) ->  | D68: =INDEX(tblIssues[Assigned to],$B68) ->  | E68: =INDEX(tblIssues[Criticality],$B68) ->  | F68: =IFERROR(INDEX(tblIssues[Due date],$B68),"") ->  | G68: =INDEX(tblIssues[Closed?],$B68) ->  | J68: =RANK(I68,$I$57:INDEX($I$57:$I$76,$I$53),0) ->  | N68: =IFERROR(INDEX(tblIssues[Description],$M68),"") ->  | O68: =IFERROR(INDEX(tblIssues[Assigned to],$M68),"") ->  | P68: =IFERROR(INDEX(tblIssues[Criticality],$M68),"") ->  | Q68: =IFERROR(INDEX(tblIssues[Due date],$M68),"") -> 
A69: 13 | B69: =LARGE((tblIssues[ID])*(tblIssues[In Project]=$C$53),$A69) -> 0 | C69: =INDEX(tblIssues[Description],$B69) ->  | D69: =INDEX(tblIssues[Assigned to],$B69) ->  | E69: =INDEX(tblIssues[Criticality],$B69) ->  | F69: =IFERROR(INDEX(tblIssues[Due date],$B69),"") ->  | G69: =INDEX(tblIssues[Closed?],$B69) ->  | J69: =RANK(I69,$I$57:INDEX($I$57:$I$76,$I$53),0) ->  | N69: =IFERROR(INDEX(tblIssues[Description],$M69),"") ->  | O69: =IFERROR(INDEX(tblIssues[Assigned to],$M69),"") ->  | P69: =IFERROR(INDEX(tblIssues[Criticality],$M69),"") ->  | Q69: =IFERROR(INDEX(tblIssues[Due date],$M69),"") -> 
A70: 14 | B70: =LARGE((tblIssues[ID])*(tblIssues[In Project]=$C$53),$A70) -> 0 | C70: =INDEX(tblIssues[Description],$B70) ->  | D70: =INDEX(tblIssues[Assigned to],$B70) ->  | E70: =INDEX(tblIssues[Criticality],$B70) ->  | F70: =IFERROR(INDEX(tblIssues[Due date],$B70),"") ->  | G70: =INDEX(tblIssues[Closed?],$B70) ->  | J70: =RANK(I70,$I$57:INDEX($I$57:$I$76,$I$53),0) ->  | N70: =IFERROR(INDEX(tblIssues[Description],$M70),"") ->  | O70: =IFERROR(INDEX(tblIssues[Assigned to],$M70),"") ->  | P70: =IFERROR(INDEX(tblIssues[Criticality],$M70),"") ->  | Q70: =IFERROR(INDEX(tblIssues[Due date],$M70),"") -> 
A71: 15 | B71: =LARGE((tblIssues[ID])*(tblIssues[In Project]=$C$53),$A71) -> 0 | C71: =INDEX(tblIssues[Description],$B71) ->  | D71: =INDEX(tblIssues[Assigned to],$B71) ->  | E71: =INDEX(tblIssues[Criticality],$B71) ->  | F71: =IFERROR(INDEX(tblIssues[Due date],$B71),"") ->  | G71: =INDEX(tblIssues[Closed?],$B71) ->  | J71: =RANK(I71,$I$57:INDEX($I$57:$I$76,$I$53),0) ->  | N71: =IFERROR(INDEX(tblIssues[Description],$M71),"") ->  | O71: =IFERROR(INDEX(tblIssues[Assigned to],$M71),"") ->  | P71: =IFERROR(INDEX(tblIssues[Criticality],$M71),"") ->  | Q71: =IFERROR(INDEX(tblIssues[Due date],$M71),"") -> 
A72: 16 | B72: =LARGE((tblIssues[ID])*(tblIssues[In Project]=$C$53),$A72) -> 0 | C72: =INDEX(tblIssues[Description],$B72) ->  | D72: =INDEX(tblIssues[Assigned to],$B72) ->  | E72: =INDEX(tblIssues[Criticality],$B72) ->  | F72: =IFERROR(INDEX(tblIssues[Due date],$B72),"") ->  | G72: =INDEX(tblIssues[Closed?],$B72) ->  | J72: =RANK(I72,$I$57:INDEX($I$57:$I$76,$I$53),0) ->  | N72: =IFERROR(INDEX(tblIssues[Description],$M72),"") ->  | O72: =IFERROR(INDEX(tblIssues[Assigned to],$M72),"") ->  | P72: =IFERROR(INDEX(tblIssues[Criticality],$M72),"") ->  | Q72: =IFERROR(INDEX(tblIssues[Due date],$M72),"") -> 
A73: 17 | B73: =LARGE((tblIssues[ID])*(tblIssues[In Project]=$C$53),$A73) -> 0 | C73: =INDEX(tblIssues[Description],$B73) ->  | D73: =INDEX(tblIssues[Assigned to],$B73) ->  | E73: =INDEX(tblIssues[Criticality],$B73) ->  | F73: =IFERROR(INDEX(tblIssues[Due date],$B73),"") ->  | G73: =INDEX(tblIssues[Closed?],$B73) ->  | J73: =RANK(I73,$I$57:INDEX($I$57:$I$76,$I$53),0) ->  | N73: =IFERROR(INDEX(tblIssues[Description],$M73),"") ->  | O73: =IFERROR(INDEX(tblIssues[Assigned to],$M73),"") ->  | P73: =IFERROR(INDEX(tblIssues[Criticality],$M73),"") ->  | Q73: =IFERROR(INDEX(tblIssues[Due date],$M73),"") -> 
A74: 18 | B74: =LARGE((tblIssues[ID])*(tblIssues[In Project]=$C$53),$A74) -> 0 | C74: =INDEX(tblIssues[Description],$B74) ->  | D74: =INDEX(tblIssues[Assigned to],$B74) ->  | E74: =INDEX(tblIssues[Criticality],$B74) ->  | F74: =IFERROR(INDEX(tblIssues[Due date],$B74),"") ->  | G74: =INDEX(tblIssues[Closed?],$B74) ->  | J74: =RANK(I74,$I$57:INDEX($I$57:$I$76,$I$53),0) ->  | N74: =IFERROR(INDEX(tblIssues[Description],$M74),"") ->  | O74: =IFERROR(INDEX(tblIssues[Assigned to],$M74),"") ->  | P74: =IFERROR(INDEX(tblIssues[Criticality],$M74),"") ->  | Q74: =IFERROR(INDEX(tblIssues[Due date],$M74),"") -> 
A75: 19 | B75: =LARGE((tblIssues[ID])*(tblIssues[In Project]=$C$53),$A75) -> 0 | C75: =INDEX(tblIssues[Description],$B75) ->  | D75: =INDEX(tblIssues[Assigned to],$B75) ->  | E75: =INDEX(tblIssues[Criticality],$B75) ->  | F75: =IFERROR(INDEX(tblIssues[Due date],$B75),"") ->  | G75: =INDEX(tblIssues[Closed?],$B75) ->  | J75: =RANK(I75,$I$57:INDEX($I$57:$I$76,$I$53),0) ->  | N75: =IFERROR(INDEX(tblIssues[Description],$M75),"") ->  | O75: =IFERROR(INDEX(tblIssues[Assigned to],$M75),"") ->  | P75: =IFERROR(INDEX(tblIssues[Criticality],$M75),"") ->  | Q75: =IFERROR(INDEX(tblIssues[Due date],$M75),"") -> 
A76: 20 | B76: =LARGE((tblIssues[ID])*(tblIssues[In Project]=$C$53),$A76) -> 0 | C76: =INDEX(tblIssues[Description],$B76) ->  | D76: =INDEX(tblIssues[Assigned to],$B76) ->  | E76: =INDEX(tblIssues[Criticality],$B76) ->  | F76: =IFERROR(INDEX(tblIssues[Due date],$B76),"") ->  | G76: =INDEX(tblIssues[Closed?],$B76) ->  | J76: =RANK(I76,$I$57:INDEX($I$57:$I$76,$I$53),0) ->  | N76: =IFERROR(INDEX(tblIssues[Description],$M76),"") ->  | O76: =IFERROR(INDEX(tblIssues[Assigned to],$M76),"") ->  | P76: =IFERROR(INDEX(tblIssues[Criticality],$M76),"") ->  | Q76: =IFERROR(INDEX(tblIssues[Due date],$M76),"") -> 
B78: Top 5 issues | C78: 25
B79: =TEXT(Q57,"""[""dd-mmm-yyyy""]"";;;") ->  | C79: =LEFT(N57,$C$78)&REPT("…",LEN(N57)>$C$78) -> Some simple issue
B80: =TEXT(Q58,"""[""dd-mmm-yyyy""]"";;;") ->  | C80: =LEFT(N58,$C$78)&REPT("…",LEN(N58)>$C$78) -> 
B85: =B79&CHAR(10)&B80&CHAR(10)&B81&CHAR(10)&B82&CHAR(10)&B83 ->  | C85: =C79&CHAR(10)&C80&CHAR(10)&C81&CHAR(10)&C82&CHAR(10)&C83 -> Some simple issue
A87: Risks for selected Project | G87: =COUNTIF($B$90:$B$109,">0") -> 5
G88: Sort by severity & ID | K88: Sorted
B89: ID | C89: ='Risks & Issues'!D3 -> Risk Description | D89: ='Risks & Issues'!E3 -> Mitigation Plan | E89: ='Risks & Issues'!F3 -> Severity | G89: Score | H89: Sort Order | K89: =B89 -> ID | L89: Risk Description | M89: Mitigation Plan | N89: Severity
A90: 1 | B90: =LARGE((tblRisks[ID])*(tblRisks[In Project]=$C$53),$A90) -> 19 | C90: =INDEX(tblRisks[Risk Description],$B90) -> Some very complicated risk | D90: =INDEX(tblRisks[Mitigation Plan],$B90) ->  | E90: =INDEX(tblRisks[Severity],$B90) -> 3 | G90: =E90+B90/10000 -> 3.0019 | H90: =RANK(G90,$G$90:INDEX($G$90:$G$109,$G$87),0) -> 2 | K90: =INDEX($B$90:$B$109,MATCH($A90,$H$90:$H$109,0)) -> 4 | L90: =INDEX(tblRisks[Risk Description],$K90) -> Some very simple risk | M90: =INDEX(tblRisks[Mitigation Plan],$K90) ->  | N90: =INDEX(tblRisks[Severity],$K90) -> 5
A91: 2 | B91: =LARGE((tblRisks[ID])*(tblRisks[In Project]=$C$53),$A91) -> 17 | C91: =INDEX(tblRisks[Risk Description],$B91) -> Some complicated risk | D91: =INDEX(tblRisks[Mitigation Plan],$B91) ->  | E91: =INDEX(tblRisks[Severity],$B91) -> 2 | G91: =E91+B91/10000 -> 2.0017 | H91: =RANK(G91,$G$90:INDEX($G$90:$G$109,$G$87),0) -> 4 | K91: =INDEX($B$90:$B$109,MATCH($A91,$H$90:$H$109,0)) -> 19 | L91: =INDEX(tblRisks[Risk Description],$K91) -> Some very complicated risk | M91: =INDEX(tblRisks[Mitigation Plan],$K91) ->  | N91: =INDEX(tblRisks[Severity],$K91) -> 3
A92: 3 | B92: =LARGE((tblRisks[ID])*(tblRisks[In Project]=$C$53),$A92) -> 13 | C92: =INDEX(tblRisks[Risk Description],$B92) -> Some very simple risk | D92: =INDEX(tblRisks[Mitigation Plan],$B92) ->  | E92: =INDEX(tblRisks[Severity],$B92) -> 2 | G92: 2.0013 | H92: =RANK(G92,$G$90:INDEX($G$90:$G$109,$G$87),0) -> 5 | K92: 6 | L92: =INDEX(tblRisks[Risk Description],$K92) -> Some very simple risk | M92: =INDEX(tblRisks[Mitigation Plan],$K92) -> Our plan | N92: =INDEX(tblRisks[Severity],$K92) -> 3
A93: 4 | B93: =LARGE((tblRisks[ID])*(tblRisks[In Project]=$C$53),$A93) -> 6 | C93: =INDEX(tblRisks[Risk Description],$B93) -> Some very simple risk | D93: =INDEX(tblRisks[Mitigation Plan],$B93) -> Our plan | E93: =INDEX(tblRisks[Severity],$B93) -> 3 | G93: 3.0006 | H93: =RANK(G93,$G$90:INDEX($G$90:$G$109,$G$87),0) -> 3 | K93: 17 | L93: =INDEX(tblRisks[Risk Description],$K93) -> Some complicated risk | M93: =INDEX(tblRisks[Mitigation Plan],$K93) ->  | N93: =INDEX(tblRisks[Severity],$K93) -> 2
A94: 5 | B94: =LARGE((tblRisks[ID])*(tblRisks[In Project]=$C$53),$A94) -> 4 | C94: =INDEX(tblRisks[Risk Description],$B94) -> Some very simple risk | D94: =INDEX(tblRisks[Mitigation Plan],$B94) ->  | E94: =INDEX(tblRisks[Severity],$B94) -> 5 | G94: 5.0004 | H94: =RANK(G94,$G$90:INDEX($G$90:$G$109,$G$87),0) -> 1 | K94: 13 | L94: =INDEX(tblRisks[Risk Description],$K94) -> Some very simple risk | M94: =INDEX(tblRisks[Mitigation Plan],$K94) ->  | N94: =INDEX(tblRisks[Severity],$K94) -> 2
A95: 6 | B95: =LARGE((tblRisks[ID])*(tblRisks[In Project]=$C$53),$A95) -> 0 | C95: =INDEX(tblRisks[Risk Description],$B95) ->  | D95: =INDEX(tblRisks[Mitigation Plan],$B95) ->  | E95: =INDEX(tblRisks[Severity],$B95) ->  | H95: =RANK(G95,$G$90:INDEX($G$90:$G$109,$G$87),0) ->  | L95: =INDEX(tblRisks[Risk Description],$K95) ->  | M95: =INDEX(tblRisks[Mitigation Plan],$K95) ->  | N95: =INDEX(tblRisks[Severity],$K95) -> 
A96: 7 | B96: =LARGE((tblRisks[ID])*(tblRisks[In Project]=$C$53),$A96) -> 0 | C96: =INDEX(tblRisks[Risk Description],$B96) ->  | D96: =INDEX(tblRisks[Mitigation Plan],$B96) ->  | E96: =INDEX(tblRisks[Severity],$B96) ->  | H96: =RANK(G96,$G$90:INDEX($G$90:$G$109,$G$87),0) ->  | L96: =INDEX(tblRisks[Risk Description],$K96) ->  | M96: =INDEX(tblRisks[Mitigation Plan],$K96) ->  | N96: =INDEX(tblRisks[Severity],$K96) -> 
A97: 8 | B97: =LARGE((tblRisks[ID])*(tblRisks[In Project]=$C$53),$A97) -> 0 | C97: =INDEX(tblRisks[Risk Description],$B97) ->  | D97: =INDEX(tblRisks[Mitigation Plan],$B97) ->  | E97: =INDEX(tblRisks[Severity],$B97) ->  | H97: =RANK(G97,$G$90:INDEX($G$90:$G$109,$G$87),0) ->  | L97: =INDEX(tblRisks[Risk Description],$K97) ->  | M97: =INDEX(tblRisks[Mitigation Plan],$K97) ->  | N97: =INDEX(tblRisks[Severity],$K97) -> 
A98: 9 | B98: =LARGE((tblRisks[ID])*(tblRisks[In Project]=$C$53),$A98) -> 0 | C98: =INDEX(tblRisks[Risk Description],$B98) ->  | D98: =INDEX(tblRisks[Mitigation Plan],$B98) ->  | E98: =INDEX(tblRisks[Severity],$B98) ->  | H98: =RANK(G98,$G$90:INDEX($G$90:$G$109,$G$87),0) ->  | L98: =INDEX(tblRisks[Risk Description],$K98) ->  | M98: =INDEX(tblRisks[Mitigation Plan],$K98) ->  | N98: =INDEX(tblRisks[Severity],$K98) -> 
A99: 10 | B99: =LARGE((tblRisks[ID])*(tblRisks[In Project]=$C$53),$A99) -> 0 | C99: =INDEX(tblRisks[Risk Description],$B99) ->  | D99: =INDEX(tblRisks[Mitigation Plan],$B99) ->  | E99: =INDEX(tblRisks[Severity],$B99) ->  | H99: =RANK(G99,$G$90:INDEX($G$90:$G$109,$G$87),0) ->  | L99: =INDEX(tblRisks[Risk Description],$K99) ->  | M99: =INDEX(tblRisks[Mitigation Plan],$K99) ->  | N99: =INDEX(tblRisks[Severity],$K99) -> 
A100: 11 | B100: =LARGE((tblRisks[ID])*(tblRisks[In Project]=$C$53),$A100) -> 0 | C100: =INDEX(tblRisks[Risk Description],$B100) ->  | D100: =INDEX(tblRisks[Mitigation Plan],$B100) ->  | E100: =INDEX(tblRisks[Severity],$B100) ->  | H100: =RANK(G100,$G$90:INDEX($G$90:$G$109,$G$87),0) ->  | L100: =INDEX(tblRisks[Risk Description],$K100) ->  | M100: =INDEX(tblRisks[Mitigation Plan],$K100) ->  | N100: =INDEX(tblRisks[Severity],$K100) -> 
A101: 12 | B101: =LARGE((tblRisks[ID])*(tblRisks[In Project]=$C$53),$A101) -> 0 | C101: =INDEX(tblRisks[Risk Description],$B101) ->  | D101: =INDEX(tblRisks[Mitigation Plan],$B101) ->  | E101: =INDEX(tblRisks[Severity],$B101) ->  | H101: =RANK(G101,$G$90:INDEX($G$90:$G$109,$G$87),0) ->  | L101: =INDEX(tblRisks[Risk Description],$K101) ->  | M101: =INDEX(tblRisks[Mitigation Plan],$K101) ->  | N101: =INDEX(tblRisks[Severity],$K101) -> 
A102: 13 | B102: =LARGE((tblRisks[ID])*(tblRisks[In Project]=$C$53),$A102) -> 0 | C102: =INDEX(tblRisks[Risk Description],$B102) ->  | D102: =INDEX(tblRisks[Mitigation Plan],$B102) ->  | E102: =INDEX(tblRisks[Severity],$B102) ->  | H102: =RANK(G102,$G$90:INDEX($G$90:$G$109,$G$87),0) ->  | L102: =INDEX(tblRisks[Risk Description],$K102) ->  | M102: =INDEX(tblRisks[Mitigation Plan],$K102) ->  | N102: =INDEX(tblRisks[Severity],$K102) -> 
A103: 14 | B103: =LARGE((tblRisks[ID])*(tblRisks[In Project]=$C$53),$A103) -> 0 | C103: =INDEX(tblRisks[Risk Description],$B103) ->  | D103: =INDEX(tblRisks[Mitigation Plan],$B103) ->  | E103: =INDEX(tblRisks[Severity],$B103) ->  | H103: =RANK(G103,$G$90:INDEX($G$90:$G$109,$G$87),0) ->  | L103: =INDEX(tblRisks[Risk Description],$K103) ->  | M103: =INDEX(tblRisks[Mitigation Plan],$K103) ->  | N103: =INDEX(tblRisks[Severity],$K103) -> 
A104: 15 | B104: =LARGE((tblRisks[ID])*(tblRisks[In Project]=$C$53),$A104) -> 0 | C104: =INDEX(tblRisks[Risk Description],$B104) ->  | D104: =INDEX(tblRisks[Mitigation Plan],$B104) ->  | E104: =INDEX(tblRisks[Severity],$B104) ->  | H104: =RANK(G104,$G$90:INDEX($G$90:$G$109,$G$87),0) ->  | L104: =INDEX(tblRisks[Risk Description],$K104) ->  | M104: =INDEX(tblRisks[Mitigation Plan],$K104) ->  | N104: =INDEX(tblRisks[Severity],$K104) -> 
A105: 16 | B105: =LARGE((tblRisks[ID])*(tblRisks[In Project]=$C$53),$A105) -> 0 | C105: =INDEX(tblRisks[Risk Description],$B105) ->  | D105: =INDEX(tblRisks[Mitigation Plan],$B105) ->  | E105: =INDEX(tblRisks[Severity],$B105) ->  | H105: =RANK(G105,$G$90:INDEX($G$90:$G$109,$G$87),0) ->  | L105: =INDEX(tblRisks[Risk Description],$K105) ->  | M105: =INDEX(tblRisks[Mitigation Plan],$K105) ->  | N105: =INDEX(tblRisks[Severity],$K105) -> 
A106: 17 | B106: =LARGE((tblRisks[ID])*(tblRisks[In Project]=$C$53),$A106) -> 0 | C106: =INDEX(tblRisks[Risk Description],$B106) ->  | D106: =INDEX(tblRisks[Mitigation Plan],$B106) ->  | E106: =INDEX(tblRisks[Severity],$B106) ->  | H106: =RANK(G106,$G$90:INDEX($G$90:$G$109,$G$87),0) ->  | L106: =INDEX(tblRisks[Risk Description],$K106) ->  | M106: =INDEX(tblRisks[Mitigation Plan],$K106) ->  | N106: =INDEX(tblRisks[Severity],$K106) -> 
A107: 18 | B107: =LARGE((tblRisks[ID])*(tblRisks[In Project]=$C$53),$A107) -> 0 | C107: =INDEX(tblRisks[Risk Description],$B107) ->  | D107: =INDEX(tblRisks[Mitigation Plan],$B107) ->  | E107: =INDEX(tblRisks[Severity],$B107) ->  | H107: =RANK(G107,$G$90:INDEX($G$90:$G$109,$G$87),0) ->  | L107: =INDEX(tblRisks[Risk Description],$K107) ->  | M107: =INDEX(tblRisks[Mitigation Plan],$K107) ->  | N107: =INDEX(tblRisks[Severity],$K107) -> 
A108: 19 | B108: =LARGE((tblRisks[ID])*(tblRisks[In Project]=$C$53),$A108) -> 0 | C108: =INDEX(tblRisks[Risk Description],$B108) ->  | D108: =INDEX(tblRisks[Mitigation Plan],$B108) ->  | E108: =INDEX(tblRisks[Severity],$B108) ->  | H108: =RANK(G108,$G$90:INDEX($G$90:$G$109,$G$87),0) ->  | L108: =INDEX(tblRisks[Risk Description],$K108) ->  | M108: =INDEX(tblRisks[Mitigation Plan],$K108) ->  | N108: =INDEX(tblRisks[Severity],$K108) -> 
A109: 20 | B109: =LARGE((tblRisks[ID])*(tblRisks[In Project]=$C$53),$A109) -> 0 | C109: =INDEX(tblRisks[Risk Description],$B109) ->  | D109: =INDEX(tblRisks[Mitigation Plan],$B109) ->  | E109: =INDEX(tblRisks[Severity],$B109) ->  | H109: =RANK(G109,$G$90:INDEX($G$90:$G$109,$G$87),0) ->  | L109: =INDEX(tblRisks[Risk Description],$K109) ->  | M109: =INDEX(tblRisks[Mitigation Plan],$K109) ->  | N109: =INDEX(tblRisks[Severity],$K109) -> 
B111: 25 | C111: ~
B112: Top Risks | C112: Severity
B113: =IFERROR(LEFT(L90,$B$111)&REPT("…",LEN(L90)>$B$111),"") -> Some very simple risk | C113: =IFERROR(REPT($C$111,N90),"") -> ~~~~~
B114: =IFERROR(LEFT(L91,$B$111)&REPT("…",LEN(L91)>$B$111),"") -> Some very complicated ris… | C114: =IFERROR(REPT($C$111,N91),"") -> ~~~
B115: Some very simple risk | C115: ~~~
B116: Some complicated risk | C116: ~~
B117: Some very simple risk | C117: ~~
B119: =B113&CHAR(10)&B114&CHAR(10)&B115&CHAR(10)&B116&CHAR(10)&B117 -> Some very simple risk Some very complicated ris… Some very simple risk Some complicated risk Some very simple risk | C119: =C113&CHAR(10)&C114&CHAR(10)&C115&CHAR(10)&C116&CHAR(10)&C117 -> ~~~~~ ~~~ ~~~ ~~ ~~
A122: Tasks for the selected project
B123: =B52 -> ID | C123: 8
B124: Name | C124: HRM Rollout
B126: Total | C126: =COUNTA(INDEX(lstPlans,,1,$C$123)) -> 40
B127: Completed | C127: =COUNTIFS(INDEX(lstPlans,,4,$C$123),"100%") -> 0
B128: In Progress | C128: =COUNTIFS(INDEX(lstPlans,,4,$C$123),">0%")-C127 -> 22
B129: Yet to start | C129: =COUNTIFS(INDEX(lstPlans,,4,$C$123),"0%") -> 18
B131: =B126&CHAR(10)&B127&CHAR(10)&B128&CHAR(10)&B129 -> Total Completed In Progress Yet to start | C131: =C126&CHAR(10)&C127&CHAR(10)&C128&CHAR(10)&C129 -> 40 0 22 18
A133: People in this project
B134: Project Owner | C134: =INDEX(tblProjects[Project Owner],$C$123) -> Hart Hankenson
B135: Email | C135: =INDEX(tblProjects[Email],$C$123) -> hankensonh@project.com
B136: Phone | C136: =INDEX(tblProjects[Phone],$C$123) -> 426-687-7283
B137: Team Size | C137: ="Team size: "&INDEX(tblProjects[Team Size],$C$123) -> Team size: 20
A139: Comments
C140: =INDEX(tblProjects[Comments],$C$123) -> We need to be clam on this project. It is going to be different success.
A144: People Distribution
B145: Min | C145: =MIN(tblProjects[Team Size]) -> 15
B146: Max | C146: =MAX(tblProjects[Team Size]) -> 35
B147: Range | C147: =C146-C145 -> 20
B149: Band | C149: Start | D149: Label | E149: Count
B150: 1 | C150: =$C$145 -> 15 | D150: ="<="&C150 -> <=15 | E150: =COUNTIF(tblProjects[Team Size],"<="&C150) -> 1
B151: 2 | C151: =C150+$C$147/5 -> 19 | D151: =C151 -> 19 | E151: =COUNTIF(tblProjects[Team Size],"<="&C151)-SUM($E$150:E150) -> 0
B152: 3 | C152: =C151+$C$147/5 -> 23 | D152: =C152 -> 23 | E152: =COUNTIF(tblProjects[Team Size],"<="&C152)-SUM($E$150:E151) -> 2
B153: 4 | C153: 27 | D153: 27 | E153: =COUNTIF(tblProjects[Team Size],"<="&C153)-SUM($E$150:E152) -> 0
B154: 5 | C154: 31 | D154: 31 | E154: =COUNTIF(tblProjects[Team Size],"<="&C154)-SUM($E$150:E153) -> 1
B155: 6 | C155: 35 | D155: =C155 -> 35 | E155: =COUNTIF(tblProjects[Team Size],"<="&C155)-SUM($E$150:E154) -> 4
A157: Footer
B158: ="Prepared by "&Settings!$I$5&" on "&TEXT(Settings!$I$7,"d, mmm yyyy") -> Prepared by John Doe on 19, Nov 2012
B159: =HYPERLINK("mailto:"&Settings!$I$6,"@") -> @
A161: DB Sheet name
B162: =CELL("address",Dashboard!A1) -> '[project-portfolio-dashboard-VBA-v1-2010-trial.xlsm]Dashboard'!$A$1
B163: =MID(B162,FIND("]",B162)+1,999) -> Dashboard'!$A$1
B164: =LEFT(B163,FIND("'",B163)-1) -> Dashboard

Sheet Gantt View (hidden)
B1: Gantt Views Please do not edit
B2: Project Name | C2: =Calculations!C23 -> HRM Rollout
B3: Project ID | C3: =Calculations!C22 -> 8
B4: Project Table Name | C4: =Calculations!C24 -> plan8
G5: Dates -> | H5: =valGanttStart -> 40777 | I5: =WORKDAY(H5,1) -> 40778 | J5: =WORKDAY(I5,1) -> 40779 | K5: 40780 | L5: 40781 | M5: 40784 | N5: 40785 | O5: 40786 | P5: 40787 | Q5: 40788 | R5: 40791 | S5: 40792 | T5: 40793 | U5: 40794 | V5: 40795 | W5: 40798 | X5: 40799 | Y5: 40800 | Z5: 40801 | AA5: 40802 | AB5: 40805 | AC5: 40806 | AD5: 40807 | AE5: 40808 | AF5: 40809 | AG5: 40812 | AH5: 40813 | AI5: 40814 | AJ5: 40815 | AK5: 40816 | AL5: 40819 | AM5: 40820 | AN5: 40821 | AO5: 40822 | AP5: 40823 | AQ5: 40826 | AR5: 40827 | AS5: 40828 | AT5: 40829 | AU5: 40830 | AV5: 40833 | AW5: 40834 | AX5: 40835 | AY5: 40836 | AZ5: 40837 | BA5: 40840 | BB5: 40841 | BC5: 40842 | BD5: 40843 | BE5: 40844 | BF5: 40847 | BG5: 40848 | BH5: 40849 | BI5: 40850 | BJ5: 40851 | BK5: 40854 | BL5: 40855 | BM5: 40856 | BN5: 40857 | BO5: 40858 | BP5: 40861 | BQ5: 40862 | BR5: 40863 | BS5: 40864 | BT5: 40865 | BU5: 40868 | BV5: =WORKDAY(BU5,1) -> 40869 | BW5: 40870 | BX5: 40871 | BY5: 40872 | BZ5: 40875 | CA5: 40876 | CB5: 40877 | CC5: 40878 | CD5: 40879 | CE5: 40882 | CF5: 40883 | CG5: 40884 | CH5: 40885 | CI5: 40886 | CJ5: 40889 | CK5: 40890 | CL5: 40891 | CM5: 40892 | CN5: 40893 | CO5: 40896 | CP5: 40897 | CQ5: 40898 | CR5: 40899 | CS5: =WORKDAY(CR5,1) -> 40900 | CT5: =WORKDAY(CS5,1) -> 40903 | DD5: =valGanttStart -> 2011-08-22 | DE5: =DD5+7 -> 2011-08-29 | DF5: =DE5+7 -> 2011-09-05 | DG5: 2011-09-12 | DH5: 2011-09-19 | DI5: 2011-09-26 | DJ5: 2011-10-03 | DK5: 2011-10-10 | DL5: 2011-10-17 | DM5: 2011-10-24 | DN5: 2011-10-31 | DO5: 2011-11-07 | DP5: 2011-11-14 | DQ5: 2011-11-21 | DR5: 2011-11-28 | DS5: 2011-12-05 | DT5: 2011-12-12 | DU5: 2011-12-19 | DV5: 2011-12-26 | DW5: 2012-01-02 | DX5: 2012-01-09 | DY5: 2012-01-16 | DZ5: 2012-01-23 | EA5: 2012-01-30 | EB5: 2012-02-06 | EC5: 2012-02-13 | ED5: 2012-02-20 | EE5: 2012-02-27 | EF5: 2012-03-05 | EG5: 2012-03-12 | EH5: 2012-03-19 | ES5: =DATE(YEAR(valGanttStart),MONTH(valGanttStart),1) -> 2011-08-01 | ET5: =EDATE(ES5,1) -> 40787 | EU5: =EDATE(ET5,1) -> 40817 | EV5: 40848 | EW5: 40878 | EX5: 40909 | EY5: 40940 | EZ5: 40969 | FA5: 41000 | FB5: 41030 | FC5: 41061 | FD5: 41091 | FE5: 41122 | FF5: 41153 | FG5: 41183 | FH5: 41214 | FI5: 41244 | FJ5: 41275 | FK5: 41306 | FL5: 41334 | FM5: 41365 | FN5: 41395 | FO5: 41426 | FP5: 41456 | FQ5: 41487 | FR5: 41518 | FS5: 41548 | FT5: 41579 | FU5: 41609 | FV5: 41640
B6: View in | C6: 1 | D6: Days | E6: =INDEX(lstGanttViews,valGanttType)&" view" -> Daily view | G6: =C6 -> 1
B7: Daily View
H9: =IFERROR(H5,"") -> 2011-08-22 | I9: =I10 -> 00:00:00 | J9: 00:00:00 | K9: 00:00:00 | L9: 00:00:00 | M9: =IFERROR(IF(MONTH(M5)<>MONTH(H5),M5,""),"") ->  | N9: 00:00:00 | O9: 00:00:00 | P9: 00:00:00 | Q9: 00:00:00 | R9: =IFERROR(IF(MONTH(R5)<>MONTH(M5),R5,""),"") -> 2011-09-05 | S9: 00:00:00 | T9: 00:00:00 | U9: 00:00:00 | V9: 00:00:00 | W9: =IFERROR(IF(MONTH(W5)<>MONTH(R5),W5,""),"") ->  | X9: 00:00:00 | Y9: 00:00:00 | Z9: 00:00:00 | AA9: 00:00:00 | AB9: =IFERROR(IF(MONTH(AB5)<>MONTH(W5),AB5,""),"") ->  | AC9: 00:00:00 | AD9: 00:00:00 | AE9: 00:00:00 | AF9: 00:00:00 | AG9: =IFERROR(IF(MONTH(AG5)<>MONTH(AB5),AG5,""),"") ->  | AH9: 00:00:00 | AI9: 00:00:00 | AJ9: 00:00:00 | AK9: 00:00:00 | AL9: =IFERROR(IF(MONTH(AL5)<>MONTH(AG5),AL5,""),"") -> 2011-10-03 | AM9: 00:00:00 | AN9: 00:00:00 | AO9: 00:00:00 | AP9: 00:00:00 | AQ9: =IFERROR(IF(MONTH(AQ5)<>MONTH(AL5),AQ5,""),"") ->  | AR9: 00:00:00 | AS9: 00:00:00 | AT9: 00:00:00 | AU9: 00:00:00 | AV9: =IFERROR(IF(MONTH(AV5)<>MONTH(AQ5),AV5,""),"") ->  | AW9: 00:00:00 | AX9: 00:00:00 | AY9: 00:00:00 | AZ9: 00:00:00 | BA9: =IFERROR(IF(MONTH(BA5)<>MONTH(AV5),BA5,""),"") ->  | BB9: 00:00:00 | BC9: 00:00:00 | BD9: 00:00:00 | BE9: 00:00:00 | BF9: =IFERROR(IF(MONTH(BF5)<>MONTH(BA5),BF5,""),"") ->  | BG9: 00:00:00 | BH9: 00:00:00 | BI9: 00:00:00 | BJ9: 00:00:00 | BK9: =IFERROR(IF(MONTH(BK5)<>MONTH(BF5),BK5,""),"") -> 2011-11-07 | BL9: 00:00:00 | BM9: 00:00:00 | BN9: 00:00:00 | BO9: 00:00:00 | BP9: =IFERROR(IF(MONTH(BP5)<>MONTH(BK5),BP5,""),"") ->  | BQ9: 00:00:00 | BR9: 00:00:00 | BS9: 00:00:00 | BT9: 00:00:00 | BU9: =IFERROR(IF(MONTH(BU5)<>MONTH(BP5),BU5,""),"") ->  | BV9: =BV10 -> 00:00:00 | BW9: 00:00:00 | BX9: 00:00:00 | BY9: 00:00:00 | BZ9: =IFERROR(IF(MONTH(BZ5)<>MONTH(BU5),BZ5,""),"") ->  | CA9: 00:00:00 | CB9: 00:00:00 | CC9: 00:00:00 | CD9: 00:00:00 | CE9: =IFERROR(IF(MONTH(CE5)<>MONTH(BZ5),CE5,""),"") -> 2011-12-05 | CF9: 00:00:00 | CG9: 00:00:00 | CH9: 00:00:00 | CI9: 00:00:00 | CJ9: =IFERROR(IF(MONTH(CJ5)<>MONTH(CE5),CJ5,""),"") ->  | CK9: 00:00:00 | CL9: 00:00:00 | CM9: 00:00:00 | CN9: 00:00:00 | CO9: =IFERROR(IF(MONTH(CO5)<>MONTH(CJ5),CO5,""),"") ->  | CP9: 00:00:00 | CQ9: 00:00:00 | CR9: 00:00:00 | CS9: 00:00:00 | CU9: Weekly View | DD9: =IFERROR(TEXT(DD10,"mmmmm'yy"),"") -> A'11 | DE9: =IFERROR(IF(MONTH(DE10)<>MONTH(DD10),TEXT(DE10,"mmm"),""),"") ->  | DF9: =IFERROR(IF(MONTH(DF10)<>MONTH(DE10),TEXT(DF10,"mmm"),""),"") -> Sep | DJ9: Oct | DO9: Nov | DS9: Dec | DW9: Jan | EB9: Feb | EF9: Mar | EJ9: Monthly View | ES9: =IFERROR(YEAR(ES5),"") -> 2011 | ET9: =IFERROR(IF(YEAR(ET5)=YEAR(ES5),"",YEAR(ET5)),"") ->  | EU9: =IFERROR(IF(YEAR(EU5)=YEAR(ET5),"",YEAR(EU5)),"") ->  | EX9: 2012 | FJ9: 2013 | FV9: 2014
B10: =Calculations!D28 -> Activity | C10: =Calculations!F28 -> Duration | D10: =Calculations!G28 -> % done | E10: % Budget | F10: Start | G10: End | H10: =IFERROR(H5,"") -> 2011-08-22 | M10: =IFERROR(M5,"") -> 2011-08-29 | R10: =IFERROR(R5,"") -> 2011-09-05 | W10: =IFERROR(W5,"") -> 2011-09-12 | AB10: =IFERROR(AB5,"") -> 2011-09-19 | AG10: =IFERROR(AG5,"") -> 2011-09-26 | AL10: =IFERROR(AL5,"") -> 2011-10-03 | AQ10: =IFERROR(AQ5,"") -> 2011-10-10 | AV10: =IFERROR(AV5,"") -> 2011-10-17 | BA10: =IFERROR(BA5,"") -> 2011-10-24 | BF10: =IFERROR(BF5,"") -> 2011-10-31 | BK10: =IFERROR(BK5,"") -> 2011-11-07 | BP10: =IFERROR(BP5,"") -> 2011-11-14 | BU10: =IFERROR(BU5,"") -> 2011-11-21 | BZ10: =IFERROR(BZ5,"") -> 2011-11-28 | CE10: =IFERROR(CE5,"") -> 2011-12-05 | CJ10: =IFERROR(CJ5,"") -> 2011-12-12 | CO10: =IFERROR(CO5,"") -> 2011-12-19 | CT10: =CT5 -> 40903 | CU10: Start | CV10: Completion | CX10: =B10 -> Activity | CY10: =C10 -> Duration | CZ10: =D10 -> % done | DA10: =E10 -> % Budget | DB10: =F10 -> Start | DC10: End | DD10: =IFERROR(DD5,"") -> 2011-08-22 | DE10: =IFERROR(DE5,"") -> 2011-08-29 | DF10: 2011-09-05 | DG10: 2011-09-12 | DH10: 2011-09-19 | DI10: 2011-09-26 | DJ10: 2011-10-03 | DK10: 2011-10-10 | DL10: 2011-10-17 | DM10: 2011-10-24 | DN10: 2011-10-31 | DO10: 2011-11-07 | DP10: 2011-11-14 | DQ10: 2011-11-21 | DR10: 2011-11-28 | DS10: 2011-12-05 | DT10: 2011-12-12 | DU10: 2011-12-19 | DV10: 2011-12-26 | DW10: 2012-01-02 | DX10: 2012-01-09 | DY10: 2012-01-16 | DZ10: 2012-01-23 | EA10: 2012-01-30 | EB10: 2012-02-06 | EC10: 2012-02-13 | ED10: 2012-02-20 | EE10: 2012-02-27 | EF10: 2012-03-05 | EG10: 2012-03-12 | EJ10: =CU10 -> Start | EK10: =CV10 -> Completion | EM10: =CX10 -> Activity | EN10: =CY10 -> Duration | EO10: =CZ10 -> % done | EP10: =DA10 -> % Budget | EQ10: =DB10 -> Start | ER10: =DC10 -> End | ES10: =IFERROR(ES5,"") -> 2011-08-01 | ET10: =IFERROR(ET5,"") -> 2011-09-01 | EU10: 2011-10-01 | EV10: 2011-11-01 | EW10: 2011-12-01 | EX10: 2012-01-01 | EY10: 2012-02-01 | EZ10: 2012-03-01 | FA10: 2012-04-01 | FB10: 2012-05-01 | FC10: 2012-06-01 | FD10: 2012-07-01 | FE10: 2012-08-01 | FF10: 2012-09-01 | FG10: 2012-10-01 | FH10: 2012-11-01 | FI10: 2012-12-01 | FJ10: 2013-01-01 | FK10: 2013-02-01 | FL10: 2013-03-01 | FM10: 2013-04-01 | FN10: 2013-05-01 | FO10: 2013-06-01 | FP10: 2013-07-01 | FQ10: 2013-08-01 | FR10: 2013-09-01 | FS10: 2013-10-01 | FT10: 2013-11-01 | FU10: 2013-12-01 | FV10: 2014-01-01
B11: =Calculations!D29 -> Activity 1 | C11: =Calculations!F29 -> 21 | D11: =Calculations!G29 -> 0.83 | E11: =IFERROR(Calculations!I29/Calculations!H29,"") -> 0.291 | F11: =Calculations!E29 -> 2011-08-27 | G11: =WORKDAY(F11,C11,lstHolidays) -> 2011-09-26 | CU11: =F11-CHOOSE(WEEKDAY(F11),6,0,1,2,3,4,5) -> 2011-08-22 | CV11: =G11+CHOOSE(WEEKDAY(G11),1,0,6,5,4,3,2) -> 2011-09-26 | CX11: Activity 1 | CY11: 21 | CZ11: 0.83 | DA11: 0.291 | DB11: 2011-08-27 | DC11: =G11 -> 2011-09-26 | EJ11: =DATE(YEAR(F11),MONTH(F11),1) -> 2011-08-01 | EK11: =DATE(YEAR(G11),MONTH(G11),1) -> 2011-09-01 | EM11: Activity 1 | EN11: 21 | EO11: 0.83 | EP11: 0.291 | EQ11: 2011-08-27 | ER11: 2011-09-26
B12: =Calculations!D30 -> Activity 2 | C12: =Calculations!F30 -> 7 | D12: =Calculations!G30 -> 0 | E12: =IFERROR(Calculations!I30/Calculations!H30,"") -> 0 | F12: =Calculations!E30 -> 2011-09-14 | G12: 2011-09-23 | CU12: 2011-09-12 | CV12: 2011-09-26 | CX12: Activity 2 | CY12: 7 | CZ12: 0 | DA12: 0 | DB12: 2011-09-14 | DC12: 2011-09-23 | EJ12: 2011-09-01 | EK12: 2011-09-01 | EM12: Activity 2 | EN12: 7 | EO12: 0 | EP12: 0 | EQ12: 2011-09-14 | ER12: 2011-09-23
B13: =Calculations!D31 -> Activity 3 | C13: =Calculations!F31 -> 14 | D13: =Calculations!G31 -> 0 | E13: =IFERROR(Calculations!I31/Calculations!H31,"") -> 0 | F13: =Calculations!E31 -> 2011-09-23 | G13: 2011-10-13 | CU13: 2011-09-19 | CV13: 2011-10-17 | CX13: Activity 3 | CY13: 14 | CZ13: 0 | DA13: 0 | DB13: 2011-09-23 | DC13: 2011-10-13 | EJ13: 2011-09-01 | EK13: 2011-10-01 | EM13: Activity 3 | EN13: 14 | EO13: 0 | EP13: 0 | EQ13: 2011-09-23 | ER13: 2011-10-13
B14: =Calculations!D32 -> Activity 4 | C14: =Calculations!F32 -> 7 | D14: =Calculations!G32 -> 0 | E14: =IFERROR(Calculations!I32/Calculations!H32,"") -> 0 | F14: =Calculations!E32 -> 2011-10-06 | G14: 2011-10-17 | CU14: 2011-10-03 | CV14: 2011-10-17 | CX14: Activity 4 | CY14: 7 | CZ14: 0 | DA14: 0 | DB14: 2011-10-06 | DC14: 2011-10-17 | EJ14: 2011-10-01 | EK14: 2011-10-01 | EM14: Activity 4 | EN14: 7 | EO14: 0 | EP14: 0 | EQ14: 2011-10-06 | ER14: 2011-10-17
B15: =Calculations!D33 -> Activity 5 | C15: =Calculations!F33 -> 7 | D15: =Calculations!G33 -> 0.41 | E15: =IFERROR(Calculations!I33/Calculations!H33,"") -> 0.109 | F15: =Calculations!E33 -> 2011-10-18 | G15: 2011-10-27 | CU15: 2011-10-17 | CV15: 2011-10-31 | CX15: Activity 5 | CY15: 7 | CZ15: 0.41 | DA15: 0.109 | DB15: 2011-10-18 | DC15: 2011-10-27 | EJ15: 2011-10-01 | EK15: 2011-10-01 | EM15: Activity 5 | EN15: 7 | EO15: 0.41 | EP15: 0.109 | EQ15: 2011-10-18 | ER15: 2011-10-27
B16: =Calculations!D34 -> Activity 6 | C16: =Calculations!F34 -> 14 | D16: =Calculations!G34 -> 0.53 | E16: =IFERROR(Calculations!I34/Calculations!H34,"") -> 0.0518 | F16: =Calculations!E34 -> 2011-10-28 | G16: 2011-11-17 | CU16: 2011-10-24 | CV16: 2011-11-21 | CX16: Activity 6 | CY16: 14 | CZ16: 0.53 | DA16: 0.0518 | DB16: 2011-10-28 | DC16: 2011-11-17 | EJ16: 2011-10-01 | EK16: 2011-11-01 | EM16: Activity 6 | EN16: 14 | EO16: 0.53 | EP16: 0.0518 | EQ16: 2011-10-28 | ER16: 2011-11-17
B17: =Calculations!D35 -> Activity 7 | C17: =Calculations!F35 -> 14 | D17: =Calculations!G35 -> 0.67 | E17: =IFERROR(Calculations!I35/Calculations!H35,"") -> 0.695 | F17: =Calculations!E35 -> 2011-11-14 | G17: 2011-12-02 | CU17: 2011-11-14 | CV17: 2011-12-05 | CX17: Activity 7 | CY17: 14 | CZ17: 0.67 | DA17: 0.695 | DB17: 2011-11-14 | DC17: 2011-12-02 | EJ17: 2011-11-01 | EK17: 2011-12-01 | EM17: Activity 7 | EN17: 14 | EO17: 0.67 | EP17: 0.695 | EQ17: 2011-11-14 | ER17: 2011-12-02
B18: =Calculations!D36 -> Activity 8 | C18: =Calculations!F36 -> 14 | D18: =Calculations!G36 -> 0 | E18: =IFERROR(Calculations!I36/Calculations!H36,"") -> 0 | F18: =Calculations!E36 -> 2011-12-02 | G18: 2011-12-22 | CU18: 2011-11-28 | CV18: 2011-12-26 | CX18: Activity 8 | CY18: 14 | CZ18: 0 | DA18: 0 | DB18: 2011-12-02 | DC18: 2011-12-22 | EJ18: 2011-12-01 | EK18: 2011-12-01 | EM18: Activity 8 | EN18: 14 | EO18: 0 | EP18: 0 | EQ18: 2011-12-02 | ER18: 2011-12-22
B19: =Calculations!D37 -> Activity 9 | C19: =Calculations!F37 -> 7 | D19: =Calculations!G37 -> 0.14 | E19: =IFERROR(Calculations!I37/Calculations!H37,"") -> 0.1285 | F19: =Calculations!E37 -> 2011-12-14 | G19: 2011-12-23 | CU19: 2011-12-12 | CV19: 2011-12-26 | CX19: Activity 9 | CY19: 7 | CZ19: 0.14 | DA19: 0.1285 | DB19: 2011-12-14 | DC19: 2011-12-23 | EJ19: 2011-12-01 | EK19: 2011-12-01 | EM19: Activity 9 | EN19: 7 | EO19: 0.14 | EP19: 0.1285 | EQ19: 2011-12-14 | ER19: 2011-12-23
B20: =Calculations!D38 -> Activity 10 | C20: =Calculations!F38 -> 14 | D20: =Calculations!G38 -> 0.36 | E20: =IFERROR(Calculations!I38/Calculations!H38,"") -> 0.2086 | F20: =Calculations!E38 -> 2011-12-27 | G20: 2012-01-16 | CU20: 2011-12-26 | CV20: 2012-01-16 | CX20: Activity 10 | CY20: 14 | CZ20: 0.36 | DA20: 0.2086 | DB20: 2011-12-27 | DC20: 2012-01-16 | EJ20: 2011-12-01 | EK20: 2012-01-01 | EM20: Activity 10 | EN20: 14 | EO20: 0.36 | EP20: 0.2086 | EQ20: 2011-12-27 | ER20: 2012-01-16
B21: =Calculations!D39 -> Activity 11 | C21: =Calculations!F39 -> 14 | D21: =Calculations!G39 -> 0 | E21: =IFERROR(Calculations!I39/Calculations!H39,"") -> 0 | F21: =Calculations!E39 -> 2012-01-09 | G21: 2012-01-27 | CU21: 2012-01-09 | CV21: 2012-01-30 | CX21: Activity 11 | CY21: 14 | CZ21: 0 | DA21: 0 | DB21: 2012-01-09 | DC21: 2012-01-27 | EJ21: 2012-01-01 | EK21: 2012-01-01 | EM21: Activity 11 | EN21: 14 | EO21: 0 | EP21: 0 | EQ21: 2012-01-09 | ER21: 2012-01-27
B22: =Calculations!D40 -> Activity 12 | C22: =Calculations!F40 -> 14 | D22: =Calculations!G40 -> 0.34 | E22: =IFERROR(Calculations!I40/Calculations!H40,"") -> 0.02033333333 | F22: =Calculations!E40 -> 2012-01-20 | G22: 2012-02-09 | CU22: 2012-01-16 | CV22: 2012-02-13 | CX22: Activity 12 | CY22: 14 | CZ22: 0.34 | DA22: 0.02033333333 | DB22: 2012-01-20 | DC22: 2012-02-09 | EJ22: 2012-01-01 | EK22: 2012-02-01 | EM22: Activity 12 | EN22: 14 | EO22: 0.34 | EP22: 0.02033333333 | EQ22: 2012-01-20 | ER22: 2012-02-09
B23: =Calculations!D41 -> Activity 13 | C23: =Calculations!F41 -> 7 | D23: =Calculations!G41 -> 0 | E23: =IFERROR(Calculations!I41/Calculations!H41,"") -> 0 | F23: =Calculations!E41 -> 2012-02-08 | G23: 2012-02-17 | CU23: 2012-02-06 | CV23: 2012-02-20 | CX23: Activity 13 | CY23: 7 | CZ23: 0 | DA23: 0 | DB23: 2012-02-08 | DC23: 2012-02-17 | EJ23: 2012-02-01 | EK23: 2012-02-01 | EM23: Activity 13 | EN23: 7 | EO23: 0 | EP23: 0 | EQ23: 2012-02-08 | ER23: 2012-02-17
B24: =Calculations!D42 -> Activity 14 | C24: =Calculations!F42 -> 21 | D24: =Calculations!G42 -> 0.36 | E24: =IFERROR(Calculations!I42/Calculations!H42,"") -> 0.1796 | F24: =Calculations!E42 -> 2012-02-27 | G24: 2012-03-27 | CU24: 2012-02-27 | CV24: 2012-04-02 | CX24: Activity 14 | CY24: 21 | CZ24: 0.36 | DA24: 0.1796 | DB24: 2012-02-27 | DC24: 2012-03-27 | EJ24: 2012-02-01 | EK24: 2012-03-01 | EM24: Activity 14 | EN24: 21 | EO24: 0.36 | EP24: 0.1796 | EQ24: 2012-02-27 | ER24: 2012-03-27
B25: =Calculations!D43 -> Activity 15 | C25: =Calculations!F43 -> 14 | D25: =Calculations!G43 -> 0 | E25: =IFERROR(Calculations!I43/Calculations!H43,"") -> 0 | F25: =Calculations!E43 -> 2012-03-09 | G25: 2012-03-29 | CU25: 2012-03-05 | CV25: 2012-04-02 | CX25: Activity 15 | CY25: 14 | CZ25: 0 | DA25: 0 | DB25: 2012-03-09 | DC25: 2012-03-29 | EJ25: 2012-03-01 | EK25: 2012-03-01 | EM25: Activity 15 | EN25: 14 | EO25: 0 | EP25: 0 | EQ25: 2012-03-09 | ER25: 2012-03-29
B26: =Calculations!D44 -> Activity 16 | C26: =Calculations!F44 -> 21 | D26: =Calculations!G44 -> 0 | E26: =IFERROR(Calculations!I44/Calculations!H44,"") -> 0 | F26: =Calculations!E44 -> 2012-03-20 | G26: 2012-04-18 | CU26: 2012-03-19 | CV26: 2012-04-23 | CX26: Activity 16 | CY26: 21 | CZ26: 0 | DA26: 0 | DB26: 2012-03-20 | DC26: 2012-04-18 | EJ26: 2012-03-01 | EK26: 2012-04-01 | EM26: Activity 16 | EN26: 21 | EO26: 0 | EP26: 0 | EQ26: 2012-03-20 | ER26: 2012-04-18
H29: =valGanttStart -> 40777 | I29: =H29+7 -> 40784 | J29: =I29+7 -> 40791 | K29: 40798 | L29: 40805 | M29: 40812 | N29: 40819 | O29: 40826 | P29: 40833 | Q29: 40840 | R29: 40847 | S29: 40854 | T29: 40861 | U29: 40868 | V29: 40875 | W29: 40882 | X29: 40889 | Y29: 40896 | Z29: 40903 | AA29: 40910 | AB29: 40917 | AC29: 40924 | AD29: 40931 | AE29: 40938 | AF29: 40945 | AG29: 40952 | AH29: 40959 | AI29: 40966 | AJ29: 40973 | AK29: 40980 | AL29: 40987 | AM29: 40994 | AN29: 41001 | AO29: 41008 | AP29: 41015 | AQ29: 41022 | AR29: 41029 | AS29: 41036 | AT29: 41043 | AU29: 41050 | AV29: 41057 | AW29: 41064 | AX29: 41071 | AY29: 41078 | AZ29: 41085 | BA29: 41092 | BB29: 41099 | BC29: 41106 | BD29: 41113 | BE29: 41120 | BF29: 41127 | BG29: 41134 | BH29: 41141 | BI29: 41148 | BJ29: 41155 | BK29: 41162 | BL29: 41169 | BM29: 41176 | BN29: 41183 | BO29: 41190 | BP29: 41197 | BQ29: 41204 | BR29: 41211 | BS29: 41218 | BT29: 41225 | BU29: 41232 | BV29: =BU29+7 -> 41239 | BW29: 41246 | BX29: 41253 | BY29: 41260 | BZ29: 41267 | CA29: 41274 | CB29: 41281 | CC29: 41288 | CD29: 41295 | CE29: 41302 | CF29: 41309 | CG29: 41316 | CH29: 41323 | CI29: 41330 | CJ29: 41337 | CK29: 41344 | CL29: 41351 | CM29: 41358 | CN29: 41365 | CO29: 41372 | CP29: 41379 | CQ29: 41386 | CR29: 41393 | CS29: 41400

Sheet Help
B2: Watch these help videos to get started. You need internet connection to watch them.
B4: 1. Setting up Project Portfolio Dashboard
D6: Learn how to set up the project portfolio dashboard. Understand how to use it, how to add data, settings, holidays and more. Video - 16 mins
B18: 2. Using the Project Portfolio Dashboard
D20: Learn how to use the dashboard, how various aspects of it work and how to customize it. Video - 11 mins
B32: 3. Saving & Printing the dashboard
D34: Understand how to save & print the dashboard. How to export it as a PDF and more. Video - 6 mins
B46: More tutorials online
